{"text_format":"1","workbook":"xlsx","n_sheets":2,"sheets":["計算表","参照表"],"not_rendered":{"charts":0,"images":0,"macros":1,"external_links":0,"defined_names":70,"comments":1,"pivot_tables":0},"unopened":[],"bounds":{"document_bytes":16777216,"sheet_cells":100000,"rows_first":2000,"rows_last":500,"rows_between":2000,"halvings":0,"cell_chars":16384,"cell_head_chars":4096},"cells_cut":0,"cells_raw":0,"read":"whole","date_system":"1900"}

{"sheet":"計算表","index":0,"n_rows":172,"n_cols":81,"rows_kept":172,"cut":false,"hidden":false,"merged":[[56,1,56,26],[57,1,57,26],[58,1,58,26],[49,14,50,14],[49,15,50,15],[29,17,30,18],[33,12,34,12],[0,2,0,24],[54,1,54,26],[55,1,55,26],[33,15,34,15],[33,16,34,16],[33,17,34,18],[31,12,32,13],[49,13,50,13],[29,15,30,15],[29,16,30,16],[39,1,39,5],[8,12,9,21],[29,14,30,14],[29,13,30,13],[33,13,34,13],[33,14,34,14],[49,12,50,12],[29,12,30,12],[40,8,41,8],[49,16,50,16],[41,14,42,14],[41,15,42,15],[41,16,42,16],[41,17,42,18],[49,18,50,19],[48,9,49,9],[41,13,42,13],[50,9,51,9],[8,2,9,3],[8,4,9,9],[8,10,9,11],[29,1,30,5],[31,1,32,5],[31,6,32,6],[11,4,12,9],[28,1,28,5],[11,10,12,11],[31,8,32,8],[11,2,12,3],[15,0,15,2],[29,7,30,7],[29,6,30,6],[61,11,61,12],[29,9,30,9],[31,9,32,9],[33,9,34,9],[40,9,41,9],[42,9,43,9],[50,1,51,5],[40,7,41,7],[48,6,49,6],[48,8,49,8],[48,7,49,7],[42,7,43,7],[42,6,43,6],[48,1,49,5],[47,1,47,5],[50,8,51,8],[42,1,43,5],[31,7,32,7],[33,7,34,7],[40,6,41,6],[33,6,34,6],[42,8,43,8],[40,1,41,5],[59,1,59,26],[18,22,19,22],[20,22,21,22],[16,1,17,1],[16,22,17,22],[53,1,53,2],[22,2,23,18],[18,19,19,21],[20,19,21,21],[22,19,23,21],[22,1,23,1],[22,22,23,22],[26,0,26,2],[16,2,17,18],[16,19,17,21],[18,2,19,18],[20,2,21,18],[18,1,19,1],[20,1,21,1],[33,1,34,5],[29,8,30,8],[33,8,34,8],[50,6,51,6],[50,7,51,7],[41,12,42,12],[10,29,11,31],[0,32,0,34],[0,36,0,46],[20,59,20,69],[0,82,0,99],[6,29,7,31],[10,32,11,32],[10,34,11,34],[6,32,7,32]]}
["別紙１６-２",null,"サービス体制強化加算計算書　(訪問リハビリテーションを除く)　※３か月平均用",null,null,null,null,null,null,null,null,null,null,null,null,null,null,null,null,null,null,null,null,null,null,null,null,null,null,null,null,"事業所番号",{"$f":"IF(E9=\"\",\"\",E9)","v":""},null,null,"事業所名",{"$f":"IF(M9=\"\",\"\",M9)","v":""}]
[]
[null,null,"◎算定基準をよくご確認の上、申請、管理をお願いします。",null,null,null,null,null,null,null,null,null,null,null,null,null,null,null,null,null,null,null,null,null,null,null,null,null,null,null,null,"◎以下の水色枠部分について、必要事項のご記入をおねがいします（色枠以外は入力しないでください)。"]
[null,null,"◎以下の水色枠部分について、必要事項のご記入をおねがいします（色枠以外は入力しないでください)。"]
[null,null,"◎上から順にご記入をお願いします。",null,null,null,null,null,null,null,null,null,null,null,null,null,null,null,null,null,null,null,null,null,null,null,null,null,null,"【事業所情報・職員配置状況】"]
[null,null,"◎加算算定に必要な要件は★印がついた項目です。",null,null,null,null,null,null,null,null,null,null,null,null,null,null,null,null,null,null,null,null,null,null,null,null,null,null,null,null,null,null,null,null,null,"各月の営業日数〔日〕",null,null,null,null,null,"（例）"]
[null,null,"◎申請にあたり、別途追加資料の提出を求める場合がございますので、その際はご協力お願いします。",null,null,null,null,null,null,null,null,null,null,null,null,null,null,null,null,null,null,null,null,null,null,null,null,null,null,"週当たりの\n営業日数",null,null,null,null,null,null,"　月","　月","　月",null,null,null,"６月","７月","８月"]
[null,null,null,null,null,null,null,null,null,null,null,null,null,null,null,null,null,null,null,null,null,null,null,null,null,null,null,null,null,null,null,null,null,"日間",null,null,null,null,null,null,null,null,22,23,23]
[null,null,"事業所番号",null,null,null,null,null,null,null,"事業所名"]
[null,null,null,null,null,null,null,null,null,null,null,null,null,null,null,null,null,null,null,null,null,null,null,null,null,null,null,null,null,null,null,null,null,null,null,null,"各月の常勤の従業員が勤務すべき時間数〔時間〕"]
[null,null,null,null,null,null,null,null,null,null,null,null,null,null,null,null,null,null,null,null,null,null,null,null,null,null,null,null,null,"常勤の従業員が\n勤務すべき時間数",null,null,null,null,null,null,{"$f":"AK7","v":"　月"},{"$f":"AL7","v":"　月"},"　月"]
[null,null,"サービスの種類",null,null,null,null,null,null,null,"算定する\n加算",null,null,null,null,null,null,null,null,null,null,null,null,null,null,null,null,null,null,null,null,null,null,"時間/日",null,"時間/週",{"$f":"ROUND($AI11*AK8/$AG7,0)","v":{"$error":"#DIV/0!"}},{"$error":"#DIV/0!"},{"$error":"#DIV/0!"}]
[]
[null,null,null,null,null,null,null,null,null,null,null,null,null,null,null,null,null,null,null,null,null,null,null,null,null,null,null,null,null,null,null,null,"※印刷前に右の整列ボタンを押して職種ごとに並べ替えた上で印刷してください"]
[]
["【体制要件】",null,null,null,{"$f":"IF(MID(加算内容,1,1)=\"1\",\"★\",\"\")","v":""}]
[null,"①",{"$f":"参照表!I2","v":{"$error":"#N/A"}},null,null,null,null,null,null,null,null,null,null,null,null,null,null,null,null,null,null,null,{"$f":"IF(LEFT(C17,1)=\"※\",\"\",IF(AND(LEFT(C17,4)=\"定員超過\",参照表!J2=2),\"○\",IF(AND(LEFT(C17,4)<>\"定員超過\",参照表!J2=1),\"○\",\"×\")))","v":{"$error":"#N/A"}}]
[]
[null,"②",{"$f":"参照表!I3","v":{"$error":"#N/A"}},null,null,null,null,null,null,null,null,null,null,null,null,null,null,null,null,null,null,null,{"$f":"IF(LEFT(C19,1)=\"※\",\"\",IF(AND(LEFT(C19,4)=\"定員超過\",参照表!J3=2),\"○\",IF(AND(LEFT(C19,4)<>\"定員超過\",参照表!J3=1),\"○\",\"×\")))","v":{"$error":"#N/A"}},null,null,null,null,null,null,null,null,"職員確認欄"]
[null,null,null,null,null,null,null,null,null,null,null,null,null,null,null,null,null,null,null,null,null,null,null,null,null,null,null,null,null,null,null,{"$f":"IF(COUNTA(AF23:AF172)=0,\"\",COUNTA(AF23:AF172))","v":""},"","","","","","",""]
[null,"③",{"$f":"参照表!I4","v":{"$error":"#N/A"}},null,null,null,null,null,null,null,null,null,null,null,null,null,null,null,null,null,null,null,{"$f":"IF(LEFT(C21,1)=\"※\",\"\",IF(AND(LEFT(C21,4)=\"定員超過\",参照表!J4=2),\"○\",IF(AND(LEFT(C21,4)<>\"定員超過\",参照表!J4=1),\"○\",\"×\")))","v":{"$error":"#N/A"}},null,null,null,null,null,null,null,null,null,null,null,null,null,null,null,null,null,null,null,null,null,null,null,null,null,null,null,null,null,"職種Ｎｏ．",null,null,null,"職種＋資格","職種＋形態","職種＋年数","「常勤専従者(A)の就労時間 = 当月常勤者が勤務すべき時間数」へ変換又は「常勤の就労時間を超えている場合⇒当月の上限値」へ変換",null,null,null,null,null,null,null,null,null,null,"勤続年数３年以上ならば１"]
[null,null,null,null,null,null,null,null,null,null,null,null,null,null,null,null,null,null,null,null,null,null,null,null,null,null,null,null,null,null,"職種No.","職種","形態","氏名","資格(介護職の場合)","勤続年数",{"$f":"AK7","v":"　月"},{"$f":"AL7","v":"　月"},"　月",null,null,null,null,null,null,null,null,null,null,null,null,null,null,null,null,null,null,null,null,null,null,null,null,null,null,null,null,null,null,null,{"$f":"COUNTIF(BS23:BS172,1)","v":0},{"$f":"COUNTIF(BT23:BT172,1)","v":0},0,0,0,0,0,0,0,0,0]
[null,"④",{"$f":"参照表!I5","v":{"$error":"#N/A"}},null,null,null,null,null,null,null,null,null,null,null,null,null,null,null,null,null,null,null,{"$f":"IF(LEFT(C23,1)=\"※\",\"\",IF(AND(LEFT(C23,4)=\"定員超過\",参照表!J5=2),\"○\",IF(AND(LEFT(C23,4)<>\"定員超過\",参照表!J5=1),\"○\",\"×\")))","v":{"$error":"#N/A"}},null,null,null,null,null,null,1,{"$f":"VLOOKUP(AF23,$BA$23:$BB$44,2,0)","v":{"$error":"#N/A"}},null,null,null,null,null,null,null,null,null,null,null,null,null,null,null,null,null,null,null,null,null,"管理者",1,null,null,{"$f":"AF23&AI23","v":""},{"$f":"AF23&AG23","v":""},{"$f":"AF23&AJ23","v":""},{"$f":"IF(OR(AK23=\"○\",AK23>AK$12),AK$12,AK23)","v":{"$error":"#DIV/0!"}},{"$f":"IF(OR(AL23=\"○\",AL23>AL$12),AL$12,AL23)","v":{"$error":"#DIV/0!"}},{"$f":"IF(OR(AM23=\"○\",AM23>AM$12),AM$12,AM23)","v":{"$error":"#DIV/0!"}},{"$f":"IF(OR(AN23=\"○\",AN23>AN$12),AN$12,AN23)","v":0},{"$f":"IF(OR(AO23=\"○\",AO23>AO$12),AO$12,AO23)","v":0},{"$f":"IF(OR(AP23=\"○\",AP23>AP$12),AP$12,AP23)","v":0},{"$f":"IF(OR(AQ23=\"○\",AQ23>AQ$12),AQ$12,AQ23)","v":0},{"$f":"IF(OR(AR23=\"○\",AR23>AR$12),AR$12,AR23)","v":0},{"$f":"IF(OR(AS23=\"○\",AS23>AS$12),AS$12,AS23)","v":0},{"$f":"IF(OR(AT23=\"○\",AT23>AT$12),AT$12,AT23)","v":0},{"$f":"IF(OR(AU23=\"○\",AU23>AU$12),AU$12,AU23)","v":0},{"$f":"IF(AND(AK23<>\"\",AK23<>0,$AJ23=\"3年以上\"),1,\"\")","v":""},"","","","","","","","","",""]
[null,null,null,null,null,null,null,null,null,null,null,null,null,null,null,null,null,null,null,null,null,null,null,null,null,null,null,null,null,2,{"$error":"#N/A"},null,null,null,null,null,null,null,null,null,null,null,null,null,null,null,null,null,null,null,null,null,"施設長",2,null,null,"","","",{"$error":"#DIV/0!"},{"$error":"#DIV/0!"},{"$error":"#DIV/0!"},0,0,0,0,0,0,0,0,{"$f":"IF(AND(AK24<>\"\",AK24<>0,$AJ24=\"3年以上\"),1,\"\")","v":""},{"$f":"IF(AND(AL24<>\"\",AL24<>0,$AJ24=\"3年以上\"),1,\"\")","v":""},{"$f":"IF(AND(AM24<>\"\",AM24<>0,$AJ24=\"3年以上\"),1,\"\")","v":""},{"$f":"IF(AND(AN24<>\"\",AN24<>0,$AJ24=\"3年以上\"),1,\"\")","v":""},{"$f":"IF(AND(AO24<>\"\",AO24<>0,$AJ24=\"3年以上\"),1,\"\")","v":""},{"$f":"IF(AND(AP24<>\"\",AP24<>0,$AJ24=\"3年以上\"),1,\"\")","v":""},{"$f":"IF(AND(AQ24<>\"\",AQ24<>0,$AJ24=\"3年以上\"),1,\"\")","v":""},{"$f":"IF(AND(AR24<>\"\",AR24<>0,$AJ24=\"3年以上\"),1,\"\")","v":""},{"$f":"IF(AND(AS24<>\"\",AS24<>0,$AJ24=\"3年以上\"),1,\"\")","v":""},{"$f":"IF(AND(AT24<>\"\",AT24<>0,$AJ24=\"3年以上\"),1,\"\")","v":""},{"$f":"IF(AND(AU24<>\"\",AU24<>0,$AJ24=\"3年以上\"),1,\"\")","v":""}]
[null,null,null,null,null,null,null,null,null,null,null,null,null,null,null,null,null,null,null,null,null,null,null,null,null,null,null,null,null,3,{"$error":"#N/A"},null,null,null,null,null,null,null,null,null,null,null,null,null,null,null,null,null,null,null,null,null,"医師",3,null,null,"","","",{"$error":"#DIV/0!"},{"$error":"#DIV/0!"},{"$error":"#DIV/0!"},0,0,0,0,0,0,0,0,"","","","","","","","","","",""]
[null,null,null,null,null,null,null,null,null,null,null,null,null,null,null,null,null,null,null,null,null,null,null,null,null,null,null,null,null,4,{"$error":"#N/A"},null,null,null,null,null,null,null,null,null,null,null,null,null,null,null,null,null,null,null,null,null,"オペレーター",4,null,null,"","","",{"$error":"#DIV/0!"},{"$error":"#DIV/0!"},{"$error":"#DIV/0!"},0,0,0,0,0,0,0,0,"","","","","","","","","","",""]
["【人材要件】",null,null,null,null,null,null,null,null,null,null,null,null,null,null,null,null,null,null,null,null,null,null,null,null,null,null,null,null,5,{"$error":"#N/A"},null,null,null,null,null,null,null,null,null,null,null,null,null,null,null,null,null,null,null,null,null,"計画作成担当者",5,null,null,"","","",{"$error":"#DIV/0!"},{"$error":"#DIV/0!"},{"$error":"#DIV/0!"},0,0,0,0,0,0,0,0,"","","","","","","","","","",""]
[null,"①資格者要件",null,null,{"$f":"IF(OR(MID(加算内容,2,1)=\"1\",MID(加算内容,2,1)=\"2\"),\"★\",\"\")","v":""},null,null,null,null,null,null,null,null,null,null,null,null,null,null,null,null,null,null,null,null,null,null,null,null,6,{"$error":"#N/A"},null,null,null,null,null,null,null,null,null,null,null,null,null,null,null,null,null,null,null,null,null,"薬剤師",6,null,null,"","","",{"$error":"#DIV/0!"},{"$error":"#DIV/0!"},{"$error":"#DIV/0!"},0,0,0,0,0,0,0,0,"","","","","","","","","","",""]
[null,null,null,null,null,null,{"$f":"AK7","v":"　月"},{"$f":"AL7","v":"　月"},"　月","平均",null,null,"割合計算",null,null,null,null,null,null,null,null,null,null,null,null,null,null,null,null,7,{"$error":"#N/A"},null,null,null,null,null,null,null,null,null,null,null,null,null,null,null,null,null,null,null,null,null,"介護支援専門員",7,null,null,"","","",{"$error":"#DIV/0!"},{"$error":"#DIV/0!"},{"$error":"#DIV/0!"},0,0,0,0,0,0,0,0,"","","","","","","","","","",""]
[null,{"$f":"IF(資格要件Ⅳ=\"○\",資格要件Ⅷ&\"の総数\",\"\")","v":{"$error":"#N/A"}},null,null,null,null,{"$f":"IF(資格要件Ⅳ=\"○\",ROUNDDOWN((SUMIF($AF23:$AF172,資格要件Ⅰ,BH23:BH172)+SUMIF($AF23:$AF172,資格要件Ⅱ,BH23:BH172)+SUMIF($AF23:$AF172,資格要件Ⅲ,BH23:BH172))/AK12,2),\"\")","v":{"$error":"#N/A"}},{"$error":"#N/A"},{"$error":"#N/A"},{"$f":"ROUNDDOWN(AVERAGE(G30:I31),2)","v":{"$error":"#N/A"}},null,null,{"$f":"ROUNDDOWN(J32,1)","v":{"$error":"#N/A"}},"÷",{"$f":"ROUNDDOWN(J30,1)","v":{"$error":"#N/A"}},"=",{"$f":"ROUNDDOWN(ROUNDDOWN(M30,1)/ROUNDDOWN(O30,1),2)","v":{"$error":"#N/A"}},{"$f":"IF(資格要件Ⅳ=\"○\",\"≧\"&資格要件Ⅵ*100&\"%?\",\"\")","v":{"$error":"#N/A"}},null,null,null,null,null,null,null,null,null,null,null,8,{"$error":"#N/A"},null,null,null,null,null,null,null,null,null,null,null,null,null,null,null,null,null,null,null,null,null,"生活相談員",8,null,null,"","","",{"$error":"#DIV/0!"},{"$error":"#DIV/0!"},{"$error":"#DIV/0!"},0,0,0,0,0,0,0,0,"","","","","","","","","","",""]
[null,null,null,null,null,null,null,null,null,null,null,null,null,null,null,null,null,null,null,null,null,null,null,null,null,null,null,null,null,9,{"$error":"#N/A"},null,null,null,null,null,null,null,null,null,null,null,null,null,null,null,null,null,null,null,null,null,"面接相談員",9,null,null,"","","",{"$error":"#DIV/0!"},{"$error":"#DIV/0!"},{"$error":"#DIV/0!"},0,0,0,0,0,0,0,0,"","","","","","","","","","",""]
[null,{"$f":"IF(資格要件Ⅳ=\"○\",\"上記のうち、\n介護福祉士の数\",\"\")","v":{"$error":"#N/A"}},null,null,null,null,{"$f":"IF(資格要件Ⅳ=\"○\",ROUNDDOWN((SUMIF($BE$23:$BE$172,資格要件Ⅰ&\"介護福祉士\",BH23:BH172)+SUMIF($BE$23:$BE$172,資格要件Ⅱ&\"介護福祉士\",BH23:BH172)+SUMIF($BE$23:$BE$172,資格要件Ⅲ&\"介護福祉士\",BH23:BH172))/AK12,2),\"\")","v":{"$error":"#N/A"}},{"$error":"#N/A"},{"$error":"#N/A"},{"$f":"ROUNDDOWN(AVERAGE(G32:I33),2)","v":{"$error":"#N/A"}},null,null,{"$f":"IF(資格要件Ⅴ=\"○\",\"または\",\"\")","v":{"$error":"#N/A"}},null,null,null,null,null,null,null,null,null,null,null,null,null,null,null,null,10,{"$error":"#N/A"},null,null,null,null,null,null,null,null,null,null,null,null,null,null,null,null,null,null,null,null,null,"介護職員",10,null,null,"","","",{"$error":"#DIV/0!"},{"$error":"#DIV/0!"},{"$error":"#DIV/0!"},0,0,0,0,0,0,0,0,"","","","","","","","","","",""]
[null,null,null,null,null,null,null,null,null,null,null,null,null,null,null,null,null,null,null,null,null,null,null,null,null,null,null,null,null,11,{"$error":"#N/A"},null,null,null,null,null,null,null,null,null,null,null,null,null,null,null,null,null,null,null,null,null,"訪問介護員",11,null,null,"","","",{"$error":"#DIV/0!"},{"$error":"#DIV/0!"},{"$error":"#DIV/0!"},0,0,0,0,0,0,0,0,"","","","","","","","","","",""]
[null,{"$f":"IF(資格要件Ⅴ=\"○\",\"総数のうち、\n基準の資格を有する者の数\",\"\")","v":{"$error":"#N/A"}},null,null,null,null,{"$f":"IF(資格要件Ⅴ=\"○\",ROUNDDOWN((SUMIF($BE$23:$BE$172,資格要件Ⅰ&参照表!$V$30,BH23:BH172)+SUMIF($BE$23:$BE$172,資格要件Ⅱ&参照表!$V$30,BH23:BH172)+SUMIF($BE$23:$BE$172,資格要件Ⅲ&参照表!$V$30,BH23:BH172)+SUMIF($BE$23:$BE$172,資格要件Ⅰ&参照表!$V$31,BH23:BH172)+SUMIF($BE$23:$BE$172,資格要件Ⅱ&参照表!$V$31,BH23:BH172)+SUMIF($BE$23:$BE$172,資格要件Ⅲ&参照表!$V$31,BH23:BH172)+SUMIF($BE$23:$BE$172,資格要件Ⅰ&参照表!$V$32,BH23:BH172)+SUMIF($BE$23:$BE$172,資格要件Ⅱ&参照表!$V$32,BH23:BH172)+SUMIF($BE$23:$BE$172,資格要件Ⅲ&参照表!$V$32,BH23:BH172))/AK12,2),\"\")","v":{"$error":"#N/A"}},{"$f":"IF(資格要件Ⅴ=\"○\",ROUNDDOWN((SUMIF($BE$23:$BE$172,資格要件Ⅰ&参照表!$V$30,BI23:BI172)+SUMIF($BE$23:$BE$172,資格要件Ⅱ&参照表!$V$30,BI23:BI172)+SUMIF($BE$23:$BE$172,資格要件Ⅲ&参照表!$V$30,BI23:BI172)+SUMIF($BE$23:$BE$172,資格要件Ⅰ&参照表!$V$31,BI23:BI172)+SUMIF($BE$23:$BE$172,資格要件Ⅱ&参照表!$V$31,BI23:BI172)+SUMIF($BE$23:$BE$172,資格要件Ⅲ&参照表!$V$31,BI23:BI172)+SUMIF($BE$23:$BE$172,資格要件Ⅰ&参照表!$V$32,BI23:BI172)+SUMIF($BE$23:$BE$172,資格要件Ⅱ&参照表!$V$32,BI23:BI172)+SUMIF($BE$23:$BE$172,資格要件Ⅲ&参照表!$V$32,BI23:BI172))/AL12,2),\"\")","v":{"$error":"#N/A"}},{"$f":"IF(資格要件Ⅴ=\"○\",ROUNDDOWN((SUMIF($BE$23:$BE$172,資格要件Ⅰ&参照表!$V$30,BJ23:BJ172)+SUMIF($BE$23:$BE$172,資格要件Ⅱ&参照表!$V$30,BJ23:BJ172)+SUMIF($BE$23:$BE$172,資格要件Ⅲ&参照表!$V$30,BJ23:BJ172)+SUMIF($BE$23:$BE$172,資格要件Ⅰ&参照表!$V$31,BJ23:BJ172)+SUMIF($BE$23:$BE$172,資格要件Ⅱ&参照表!$V$31,BJ23:BJ172)+SUMIF($BE$23:$BE$172,資格要件Ⅲ&参照表!$V$31,BJ23:BJ172)+SUMIF($BE$23:$BE$172,資格要件Ⅰ&参照表!$V$32,BJ23:BJ172)+SUMIF($BE$23:$BE$172,資格要件Ⅱ&参照表!$V$32,BJ23:BJ172)+SUMIF($BE$23:$BE$172,資格要件Ⅲ&参照表!$V$32,BJ23:BJ172))/AM12,2),\"\")","v":{"$error":"#N/A"}},{"$f":"ROUNDDOWN(AVERAGE(G34:I35),2)","v":{"$error":"#N/A"}},null,null,{"$f":"IF(資格要件Ⅴ=\"○\",ROUNDDOWN(J34,1),\"\")","v":{"$error":"#N/A"}},"÷",{"$f":"IF(資格要件Ⅴ=\"○\",ROUNDDOWN(J30,1),\"\")","v":{"$error":"#N/A"}},"=",{"$f":"ROUNDDOWN(ROUNDDOWN(M34,1)/ROUNDDOWN(O34,1),2)","v":{"$error":"#N/A"}},{"$f":"IF(資格要件Ⅴ=\"○\",\"≧\"&資格要件Ⅶ*100&\"%?\",\"\")","v":{"$error":"#N/A"}},null,null,null,null,null,null,null,null,null,null,null,12,{"$error":"#N/A"},null,null,null,null,null,null,null,null,null,null,null,null,null,null,null,null,null,null,null,null,null,"看護職員",12,null,null,"","","",{"$error":"#DIV/0!"},{"$error":"#DIV/0!"},{"$error":"#DIV/0!"},0,0,0,0,0,0,0,0,"","","","","","","","","","",""]
[null,null,null,null,null,null,null,null,null,null,null,null,null,null,null,null,null,null,null,null,null,null,null,null,null,null,null,null,null,13,{"$error":"#N/A"},null,null,null,null,null,null,null,null,null,null,null,null,null,null,null,null,null,null,null,null,null,"訪問看護員",13,null,null,"","","",{"$error":"#DIV/0!"},{"$error":"#DIV/0!"},{"$error":"#DIV/0!"},0,0,0,0,0,0,0,0,"","","","","","","","","","",""]
[null,{"$f":"IF(資格要件Ⅴ=\"○\",\"※基準の資格・・・介護福祉士、実務者研修修了者、(旧)介護職員基礎研修過程修了者\",\"\")","v":{"$error":"#N/A"}},null,null,null,null,null,null,null,null,null,null,null,null,null,null,null,null,null,null,null,null,null,null,null,null,null,null,null,14,{"$error":"#N/A"},null,null,null,null,null,null,null,null,null,null,null,null,null,null,null,null,null,null,null,null,null,"支援相談員",14,null,null,"","","",{"$error":"#DIV/0!"},{"$error":"#DIV/0!"},{"$error":"#DIV/0!"},0,0,0,0,0,0,0,0,"","","","","","","","","","",""]
[null,null,null,null,null,null,null,null,null,null,null,null,null,null,null,null,null,null,null,null,null,null,null,null,null,null,null,null,null,15,{"$error":"#N/A"},null,null,null,null,null,null,null,null,null,null,null,null,null,null,null,null,null,null,null,null,null,"OT・PT・ST",15,null,null,"","","",{"$error":"#DIV/0!"},{"$error":"#DIV/0!"},{"$error":"#DIV/0!"},0,0,0,0,0,0,0,0,"","","","","","","","","","",""]
[null,null,null,null,null,null,null,null,null,null,null,null,null,null,null,null,null,null,null,null,null,null,null,null,null,null,null,null,null,16,{"$error":"#N/A"},null,null,null,null,null,null,null,null,null,null,null,null,null,null,null,null,null,null,null,null,null,"栄養士",16,null,null,"","","",{"$error":"#DIV/0!"},{"$error":"#DIV/0!"},{"$error":"#DIV/0!"},0,0,0,0,0,0,0,0,"","","","","","","","","","",""]
[null,"②常勤者要件",null,null,{"$f":"IF(MID(加算内容,3,1)=\"1\",\"★\",\"\")","v":""},null,null,null,null,null,null,null,null,null,null,null,null,null,null,null,null,null,null,null,null,null,null,null,null,17,{"$error":"#N/A"},null,null,null,null,null,null,null,null,null,null,null,null,null,null,null,null,null,null,null,null,null,"作業療法士",17,null,null,"","","",{"$error":"#DIV/0!"},{"$error":"#DIV/0!"},{"$error":"#DIV/0!"},0,0,0,0,0,0,0,0,"","","","","","","","","","",""]
[null,null,null,null,null,null,{"$f":"AK7","v":"　月"},{"$f":"AL7","v":"　月"},"　月","平均",null,null,"割合計算",null,null,null,null,null,null,null,null,null,null,null,null,null,null,null,null,18,{"$error":"#N/A"},null,null,null,null,null,null,null,null,null,null,null,null,null,null,null,null,null,null,null,null,null,"精神保健福祉士",18,null,null,"","","",{"$error":"#DIV/0!"},{"$error":"#DIV/0!"},{"$error":"#DIV/0!"},0,0,0,0,0,0,0,0,"","","","","","","","","","",""]
[null,{"$f":"IF(常勤要件Ⅵ=\"○\",常勤要件Ⅷ&\"の総数\",\"\")","v":{"$error":"#N/A"}},null,null,null,null,{"$f":"IF(常勤要件Ⅵ=\"○\",ROUNDDOWN((SUMIF($AF23:$AF172,常勤要件Ⅰ,BH23:BH172)+SUMIF($AF23:$AF172,常勤要件Ⅱ,BH23:BH172)+SUMIF($AF23:$AF172,常勤要件Ⅲ,BH23:BH172)+SUMIF($AF23:$AF172,常勤要件Ⅳ,BH23:BH172)+SUMIF($AF23:$AF172,常勤要件Ⅴ,BH23:BH172))/AK12,2),\"\")","v":{"$error":"#N/A"}},{"$error":"#N/A"},{"$error":"#N/A"},{"$f":"ROUNDDOWN(AVERAGE(G41:I42),2)","v":{"$error":"#N/A"}},null,null,null,null,null,null,null,null,null,null,null,null,null,null,null,null,null,null,null,19,{"$error":"#N/A"},null,null,null,null,null,null,null,null,null,null,null,null,null,null,null,null,null,null,null,null,null,"機能訓練指導員",19,null,null,"","","",{"$error":"#DIV/0!"},{"$error":"#DIV/0!"},{"$error":"#DIV/0!"},0,0,0,0,0,0,0,0,"","","","","","","","","","",""]
[null,null,null,null,null,null,null,null,null,null,null,null,{"$f":"ROUNDDOWN(J43,1)","v":{"$error":"#N/A"}},"÷",{"$f":"ROUNDDOWN(J41,1)","v":{"$error":"#N/A"}},"=",{"$f":"ROUNDDOWN(ROUNDDOWN(M42,1)/ROUNDDOWN(O42,1),2)","v":{"$error":"#N/A"}},{"$f":"IF(常勤要件Ⅵ=\"○\",\"≧\"&常勤要件Ⅶ*100&\"%?\",\"\")","v":{"$error":"#N/A"}},null,null,null,null,null,null,null,null,null,null,null,20,{"$error":"#N/A"},null,null,null,null,null,null,null,null,null,null,null,null,null,null,null,null,null,null,null,null,null,"柔道整復師等",20,null,null,"","","",{"$error":"#DIV/0!"},{"$error":"#DIV/0!"},{"$error":"#DIV/0!"},0,0,0,0,0,0,0,0,"","","","","","","","","","",""]
[null,{"$f":"IF(常勤要件Ⅵ=\"○\",\"上記のうち、常勤者の数\",\"\")","v":{"$error":"#N/A"}},null,null,null,null,{"$f":"IF(常勤要件Ⅵ=\"○\",ROUNDDOWN((SUMIF($BF$23:$BF$172,常勤要件Ⅰ&\"A\",BH23:BH172)+SUMIF($BF$23:$BF$172,常勤要件Ⅱ&\"A\",BH23:BH172)+SUMIF($BF$23:$BF$172,常勤要件Ⅲ&\"A\",BH23:BH172)+SUMIF($BF$23:$BF$172,常勤要件Ⅳ&\"A\",BH23:BH172)+SUMIF($BF$23:$BF$172,常勤要件Ⅴ&\"A\",BH23:BH172)+SUMIF($BF$23:$BF$172,常勤要件Ⅰ&\"B\",BH23:BH172)+SUMIF($BF$23:$BF$172,常勤要件Ⅱ&\"B\",BH23:BH172)+SUMIF($BF$23:$BF$172,常勤要件Ⅲ&\"B\",BH23:BH172)+SUMIF($BF$23:$BF$172,常勤要件Ⅳ&\"B\",BH23:BH172)+SUMIF($BF$23:$BF$172,常勤要件Ⅴ&\"B\",BH23:BH172))/AK12,2),\"\")","v":{"$error":"#N/A"}},{"$error":"#N/A"},{"$error":"#N/A"},{"$f":"ROUNDDOWN(AVERAGE(G43:I44),2)","v":{"$error":"#N/A"}},null,null,null,null,null,null,null,null,null,null,null,null,null,null,null,null,null,null,null,21,{"$error":"#N/A"},null,null,null,null,null,null,null,null,null,null,null,null,null,null,null,null,null,null,null,null,null,"調理員その他",21,null,null,"","","",{"$error":"#DIV/0!"},{"$error":"#DIV/0!"},{"$error":"#DIV/0!"},0,0,0,0,0,0,0,0,"","","","","","","","","","",""]
[null,null,null,null,null,null,null,null,null,null,null,null,null,null,null,null,null,null,null,null,null,null,null,null,null,null,null,null,null,22,{"$error":"#N/A"},null,null,null,null,null,null,null,null,null,null,null,null,null,null,null,null,null,null,null,null,null,"調理員・事務員その他",22,null,null,"","","",{"$error":"#DIV/0!"},{"$error":"#DIV/0!"},{"$error":"#DIV/0!"},0,0,0,0,0,0,0,0,"","","","","","","","","","",""]
[null,null,null,null,null,null,null,null,null,null,null,null,null,null,null,null,null,null,null,null,null,null,null,null,null,null,null,null,null,23,{"$error":"#N/A"},null,null,null,null,null,null,null,null,null,null,null,null,null,null,null,null,null,null,null,null,null,null,null,null,null,"","","",{"$error":"#DIV/0!"},{"$error":"#DIV/0!"},{"$error":"#DIV/0!"},0,0,0,0,0,0,0,0,"","","","","","","","","","",""]
[null,null,null,null,null,null,null,null,null,null,null,null,null,null,null,null,null,null,null,null,null,null,null,null,null,null,null,null,null,24,{"$error":"#N/A"},null,null,null,null,null,null,null,null,null,null,null,null,null,null,null,null,null,null,null,null,null,null,null,null,null,"","","",{"$error":"#DIV/0!"},{"$error":"#DIV/0!"},{"$error":"#DIV/0!"},0,0,0,0,0,0,0,0,"","","","","","","","","","",""]
[null,"③勤続年数要件",null,null,{"$f":"IF(MID(加算内容,4,1)=\"1\",\"★\",\"\")","v":""},null,null,null,null,null,null,null,null,null,null,null,null,null,null,null,null,null,null,null,null,null,null,null,null,25,{"$error":"#N/A"},null,null,null,null,null,null,null,null,null,null,null,null,null,null,null,null,null,null,null,null,null,null,null,null,null,"","","",{"$error":"#DIV/0!"},{"$error":"#DIV/0!"},{"$error":"#DIV/0!"},0,0,0,0,0,0,0,0,"","","","","","","","","","",""]
[null,null,null,null,null,null,{"$f":"AK7","v":"　月"},{"$f":"AL7","v":"　月"},"　月","平均",null,null,"割合計算",null,null,null,null,null,null,null,null,null,null,null,null,null,null,null,null,26,{"$error":"#N/A"},null,null,null,null,null,null,null,null,null,null,null,null,null,null,null,null,null,null,null,null,null,null,null,null,null,"","","",{"$error":"#DIV/0!"},{"$error":"#DIV/0!"},{"$error":"#DIV/0!"},0,0,0,0,0,0,0,0,"","","","","","","","","","",""]
[null,{"$f":"IF(勤続要件Ⅶ=\"○\",勤続要件Ⅷ&\"の総数\",\"\")","v":{"$error":"#N/A"}},null,null,null,null,{"$f":"IF(勤続要件Ⅶ=\"○\",ROUNDDOWN((SUMIF($AF23:$AF172,勤続要件Ⅰ,BH23:BH172)+SUMIF($AF23:$AF172,勤続要件Ⅱ,BH23:BH172)+SUMIF($AF23:$AF172,勤続要件Ⅲ,BH23:BH172)+SUMIF($AF23:$AF172,勤続要件Ⅳ,BH23:BH172)+SUMIF($AF23:$AF172,勤続要件Ⅴ,BH23:BH172)+SUMIF($AF23:$AF172,勤続要件Ⅵ,BH23:BH172))/AK12,2),\"\")","v":{"$error":"#N/A"}},{"$error":"#N/A"},{"$error":"#N/A"},{"$f":"ROUNDDOWN(AVERAGE(G49:I50),2)","v":{"$error":"#N/A"}},null,null,null,null,null,null,null,null,null,null,null,null,null,null,null,null,null,null,null,27,{"$error":"#N/A"},null,null,null,null,null,null,null,null,null,null,null,null,null,null,null,null,null,null,null,null,null,null,null,null,null,"","","",{"$error":"#DIV/0!"},{"$error":"#DIV/0!"},{"$error":"#DIV/0!"},0,0,0,0,0,0,0,0,"","","","","","","","","","",""]
[null,null,null,null,null,null,null,null,null,null,null,null,{"$f":"ROUNDDOWN(J51,1)","v":{"$error":"#N/A"}},"÷",{"$f":"ROUNDDOWN(J49,1)","v":{"$error":"#N/A"}},"=",{"$f":"ROUNDDOWN(ROUNDDOWN(M50,1)/ROUNDDOWN(O50,1),2)","v":{"$error":"#N/A"}},null,{"$f":"IF(勤続要件Ⅶ=\"○\",\"≧30%?\",\"\")","v":{"$error":"#N/A"}},null,null,null,null,null,null,null,null,null,null,28,{"$error":"#N/A"},null,null,null,null,null,null,null,null,null,null,null,null,null,null,null,null,null,null,null,null,null,null,null,null,null,"","","",{"$error":"#DIV/0!"},{"$error":"#DIV/0!"},{"$error":"#DIV/0!"},0,0,0,0,0,0,0,0,"","","","","","","","","","",""]
[null,{"$f":"IF(勤続要件Ⅶ=\"○\",\"上記のうち、勤続年数3年以上\",\"\")","v":{"$error":"#N/A"}},null,null,null,null,{"$f":"IF(勤続要件Ⅶ=\"○\",ROUNDDOWN((SUMIF($BG$23:$BG$172,勤続要件Ⅰ&\"3年以上\",BH23:BH172)+SUMIF($BG$23:$BG$172,勤続要件Ⅱ&\"3年以上\",BH23:BH172)+SUMIF($BG$23:$BG$172,勤続要件Ⅲ&\"3年以上\",BH23:BH172)+SUMIF($BG$23:$BG$172,勤続要件Ⅳ&\"3年以上\",BH23:BH172)+SUMIF($BG$23:$BG$172,勤続要件Ⅴ&\"3年以上\",BH23:BH172)+SUMIF($BG$23:$BG$172,勤続要件Ⅵ&\"3年以上\",BH23:BH172))/AK12,2),\"\")","v":{"$error":"#N/A"}},{"$error":"#N/A"},{"$error":"#N/A"},{"$f":"ROUNDDOWN(AVERAGE(G51:I52),2)","v":{"$error":"#N/A"}},null,null,null,null,null,null,null,null,null,null,null,null,null,null,null,null,null,null,null,29,{"$error":"#N/A"},null,null,null,null,null,null,null,null,null,null,null,null,null,null,null,null,null,null,null,null,null,null,null,null,null,"","","",{"$error":"#DIV/0!"},{"$error":"#DIV/0!"},{"$error":"#DIV/0!"},0,0,0,0,0,0,0,0,"","","","","","","","","","",""]
[null,null,null,null,null,null,null,null,null,null,null,null,null,null,null,null,null,null,null,null,null,null,null,null,null,null,null,null,null,30,{"$error":"#N/A"},null,null,null,null,null,null,null,null,null,null,null,null,null,null,null,null,null,null,null,null,null,null,{"$f":"IF(P51=\"\",\"\",IF(P51=\"○\",\"○\",\"×\"))","v":""},null,null,"","","",{"$error":"#DIV/0!"},{"$error":"#DIV/0!"},{"$error":"#DIV/0!"},0,0,0,0,0,0,0,0,"","","","","","","","","","",""]
[null,null,null,null,null,null,null,null,null,null,null,null,null,null,null,null,null,null,null,null,null,null,null,null,null,null,null,null,null,31,{"$error":"#N/A"},null,null,null,null,null,null,null,null,null,null,null,null,null,null,null,null,null,null,null,null,null,null,null,null,null,"","","",{"$error":"#DIV/0!"},{"$error":"#DIV/0!"},{"$error":"#DIV/0!"},0,0,0,0,0,0,0,0,"","","","","","","","","","",""]
[null,"備考欄",null,null,null,null,null,null,null,null,null,null,null,null,null,null,null,null,null,null,null,null,null,null,null,null,null,null,null,32,{"$error":"#N/A"},null,null,null,null,null,null,null,null,null,null,null,null,null,null,null,null,null,null,null,null,null,null,null,null,null,"","","",{"$error":"#DIV/0!"},{"$error":"#DIV/0!"},{"$error":"#DIV/0!"},0,0,0,0,0,0,0,0,"","","","","","","","","","",""]
[null,null,null,null,null,null,null,null,null,null,null,null,null,null,null,null,null,null,null,null,null,null,null,null,null,null,null,null,null,33,{"$f":"VLOOKUP(AF55,$BA$23:$BB$44,2,0)","v":{"$error":"#N/A"}},null,null,null,null,null,null,null,null,null,null,null,null,null,null,null,null,null,null,null,null,null,null,null,null,null,{"$f":"AF55&AI55","v":""},{"$f":"AF55&AG55","v":""},{"$f":"AF55&AJ55","v":""},{"$f":"IF(OR(AK55=\"○\",AK55>AK$12),AK$12,AK55)","v":{"$error":"#DIV/0!"}},{"$f":"IF(OR(AL55=\"○\",AL55>AL$12),AL$12,AL55)","v":{"$error":"#DIV/0!"}},{"$f":"IF(OR(AM55=\"○\",AM55>AM$12),AM$12,AM55)","v":{"$error":"#DIV/0!"}},{"$f":"IF(OR(AN55=\"○\",AN55>AN$12),AN$12,AN55)","v":0},{"$f":"IF(OR(AO55=\"○\",AO55>AO$12),AO$12,AO55)","v":0},{"$f":"IF(OR(AP55=\"○\",AP55>AP$12),AP$12,AP55)","v":0},{"$f":"IF(OR(AQ55=\"○\",AQ55>AQ$12),AQ$12,AQ55)","v":0},{"$f":"IF(OR(AR55=\"○\",AR55>AR$12),AR$12,AR55)","v":0},{"$f":"IF(OR(AS55=\"○\",AS55>AS$12),AS$12,AS55)","v":0},{"$f":"IF(OR(AT55=\"○\",AT55>AT$12),AT$12,AT55)","v":0},{"$f":"IF(OR(AU55=\"○\",AU55>AU$12),AU$12,AU55)","v":0},"","","","","","","","","","",""]
[null,null,null,null,null,null,null,null,null,null,null,null,null,null,null,null,null,null,null,null,null,null,null,null,null,null,null,null,null,34,{"$error":"#N/A"},null,null,null,null,null,null,null,null,null,null,null,null,null,null,null,null,null,null,null,null,null,null,null,null,null,"","","",{"$error":"#DIV/0!"},{"$error":"#DIV/0!"},{"$error":"#DIV/0!"},0,0,0,0,0,0,0,0,"","","","","","","","","","",""]
[null,null,null,null,null,null,null,null,null,null,null,null,null,null,null,null,null,null,null,null,null,null,null,null,null,null,null,null,null,35,{"$error":"#N/A"},null,null,null,null,null,null,null,null,null,null,null,null,null,null,null,null,null,null,null,null,null,null,null,null,null,"","","",{"$error":"#DIV/0!"},{"$error":"#DIV/0!"},{"$error":"#DIV/0!"},0,0,0,0,0,0,0,0,"","","","","","","","","","",""]
[null,null,null,null,null,null,null,null,null,null,null,null,null,null,null,null,null,null,null,null,null,null,null,null,null,null,null,null,null,36,{"$error":"#N/A"},null,null,null,null,null,null,null,null,null,null,null,null,null,null,null,null,null,null,null,null,null,null,null,null,null,"","","",{"$error":"#DIV/0!"},{"$error":"#DIV/0!"},{"$error":"#DIV/0!"},0,0,0,0,0,0,0,0,"","","","","","","","","","",""]
[null,null,null,null,null,null,null,null,null,null,null,null,null,null,null,null,null,null,null,null,null,null,null,null,null,null,null,null,null,37,{"$error":"#N/A"},null,null,null,null,null,null,null,null,null,null,null,null,null,null,null,null,null,null,null,null,null,null,null,null,null,"","","",{"$error":"#DIV/0!"},{"$error":"#DIV/0!"},{"$error":"#DIV/0!"},0,0,0,0,0,0,0,0,"","","","","","","","","","",""]
[null,null,null,null,null,null,null,null,null,null,null,null,null,null,null,null,null,null,null,null,null,null,null,null,null,null,null,null,null,38,{"$error":"#N/A"},null,null,null,null,null,null,null,null,null,null,null,null,null,null,null,null,null,null,null,null,null,null,null,null,null,"","","",{"$error":"#DIV/0!"},{"$error":"#DIV/0!"},{"$error":"#DIV/0!"},0,0,0,0,0,0,0,0,"","","","","","","","","","",""]
[null,null,null,null,null,null,null,null,null,null,null,null,null,null,null,null,null,null,null,null,null,null,null,null,null,null,null,null,null,39,{"$error":"#N/A"},null,null,null,null,null,null,null,null,null,null,null,null,null,null,null,null,null,null,null,null,null,null,null,null,null,"","","",{"$error":"#DIV/0!"},{"$error":"#DIV/0!"},{"$error":"#DIV/0!"},0,0,0,0,0,0,0,0,"","","","","","","","","","",""]
[null,null,null,null,null,null,null,null,null,null,null,null,null,null,null,null,null,null,null,null,null,null,null,null,null,null,null,null,null,40,{"$error":"#N/A"},null,null,null,null,null,null,null,null,null,null,null,null,null,null,null,null,null,null,null,null,null,null,null,null,null,"","","",{"$error":"#DIV/0!"},{"$error":"#DIV/0!"},{"$error":"#DIV/0!"},0,0,0,0,0,0,0,0,"","","","","","","","","","",""]
[null,null,null,null,null,null,null,null,null,null,null,null,null,null,null,null,null,null,null,null,null,null,null,null,null,null,null,null,null,41,{"$error":"#N/A"},null,null,null,null,null,null,null,null,null,null,null,null,null,null,null,null,null,null,null,null,null,null,null,null,null,"","","",{"$error":"#DIV/0!"},{"$error":"#DIV/0!"},{"$error":"#DIV/0!"},0,0,0,0,0,0,0,0,"","","","","","","","","","",""]
[null,null,null,null,null,null,null,null,null,null,null,null,null,null,null,null,null,null,null,null,null,null,null,null,null,null,null,null,null,42,{"$error":"#N/A"},null,null,null,null,null,null,null,null,null,null,null,null,null,null,null,null,null,null,null,null,null,null,null,null,null,"","","",{"$error":"#DIV/0!"},{"$error":"#DIV/0!"},{"$error":"#DIV/0!"},0,0,0,0,0,0,0,0,"","","","","","","","","","",""]
[null,null,null,null,null,null,null,null,null,null,null,null,null,null,null,null,null,null,null,null,null,null,null,null,null,null,null,null,null,43,{"$error":"#N/A"},null,null,null,null,null,null,null,null,null,null,null,null,null,null,null,null,null,null,null,null,null,null,null,null,null,"","","",{"$error":"#DIV/0!"},{"$error":"#DIV/0!"},{"$error":"#DIV/0!"},0,0,0,0,0,0,0,0,"","","","","","","","","","",""]
[null,null,null,null,null,null,null,null,null,null,null,null,null,null,null,null,null,null,null,null,null,null,null,null,null,null,null,null,null,44,{"$error":"#N/A"},null,null,null,null,null,null,null,null,null,null,null,null,null,null,null,null,null,null,null,null,null,null,null,null,null,"","","",{"$error":"#DIV/0!"},{"$error":"#DIV/0!"},{"$error":"#DIV/0!"},0,0,0,0,0,0,0,0,"","","","","","","","","","",""]
[null,null,null,null,null,null,null,null,null,null,null,null,null,null,null,null,null,null,null,null,null,null,null,null,null,null,null,null,null,45,{"$error":"#N/A"},null,null,null,null,null,null,null,null,null,null,null,null,null,null,null,null,null,null,null,null,null,null,null,null,null,"","","",{"$error":"#DIV/0!"},{"$error":"#DIV/0!"},{"$error":"#DIV/0!"},0,0,0,0,0,0,0,0,"","","","","","","","","","",""]
[null,null,null,null,null,null,null,null,null,null,null,null,null,null,null,null,null,null,null,null,null,null,null,null,null,null,null,null,null,46,{"$error":"#N/A"},null,null,null,null,null,null,null,null,null,null,null,null,null,null,null,null,null,null,null,null,null,null,null,null,null,"","","",{"$error":"#DIV/0!"},{"$error":"#DIV/0!"},{"$error":"#DIV/0!"},0,0,0,0,0,0,0,0,"","","","","","","","","","",""]
[null,null,null,null,null,null,null,null,null,null,null,null,null,null,null,null,null,null,null,null,null,null,null,null,null,null,null,null,null,47,{"$error":"#N/A"},null,null,null,null,null,null,null,null,null,null,null,null,null,null,null,null,null,null,null,null,null,null,null,null,null,"","","",{"$error":"#DIV/0!"},{"$error":"#DIV/0!"},{"$error":"#DIV/0!"},0,0,0,0,0,0,0,0,"","","","","","","","","","",""]
[null,null,null,null,null,null,null,null,null,null,null,null,null,null,null,null,null,null,null,null,null,null,null,null,null,null,null,null,null,48,{"$error":"#N/A"},null,null,null,null,null,null,null,null,null,null,null,null,null,null,null,null,null,null,null,null,null,null,null,null,null,"","","",{"$error":"#DIV/0!"},{"$error":"#DIV/0!"},{"$error":"#DIV/0!"},0,0,0,0,0,0,0,0,"","","","","","","","","","",""]
[null,null,null,null,null,null,null,null,null,null,null,null,null,null,null,null,null,null,null,null,null,null,null,null,null,null,null,null,null,49,{"$error":"#N/A"},null,null,null,null,null,null,null,null,null,null,null,null,null,null,null,null,null,null,null,null,null,null,null,null,null,"","","",{"$error":"#DIV/0!"},{"$error":"#DIV/0!"},{"$error":"#DIV/0!"},0,0,0,0,0,0,0,0,"","","","","","","","","","",""]
[null,null,null,null,null,null,null,null,null,null,null,null,null,null,null,null,null,null,null,null,null,null,null,null,null,null,null,null,null,50,{"$error":"#N/A"},null,null,null,null,null,null,null,null,null,null,null,null,null,null,null,null,null,null,null,null,null,null,null,null,null,"","","",{"$error":"#DIV/0!"},{"$error":"#DIV/0!"},{"$error":"#DIV/0!"},0,0,0,0,0,0,0,0,"","","","","","","","","","",""]
[null,null,null,null,null,null,null,null,null,null,null,null,null,null,null,null,null,null,null,null,null,null,null,null,null,null,null,null,null,51,{"$error":"#N/A"},null,null,null,null,null,null,null,null,null,null,null,null,null,null,null,null,null,null,null,null,null,null,null,null,null,"","","",{"$error":"#DIV/0!"},{"$error":"#DIV/0!"},{"$error":"#DIV/0!"},0,0,0,0,0,0,0,0,"","","","","","","","","","",""]
[null,null,null,null,null,null,null,null,null,null,null,null,null,null,null,null,null,null,null,null,null,null,null,null,null,null,null,null,null,52,{"$error":"#N/A"},null,null,null,null,null,null,null,null,null,null,null,null,null,null,null,null,null,null,null,null,null,null,null,null,null,"","","",{"$error":"#DIV/0!"},{"$error":"#DIV/0!"},{"$error":"#DIV/0!"},0,0,0,0,0,0,0,0,"","","","","","","","","","",""]
[null,null,null,null,null,null,null,null,null,null,null,null,null,null,null,null,null,null,null,null,null,null,null,null,null,null,null,null,null,53,{"$error":"#N/A"},null,null,null,null,null,null,null,null,null,null,null,null,null,null,null,null,null,null,null,null,null,null,null,null,null,"","","",{"$error":"#DIV/0!"},{"$error":"#DIV/0!"},{"$error":"#DIV/0!"},0,0,0,0,0,0,0,0,"","","","","","","","","","",""]
[null,null,null,null,null,null,null,null,null,null,null,null,null,null,null,null,null,null,null,null,null,null,null,null,null,null,null,null,null,54,{"$error":"#N/A"},null,null,null,null,null,null,null,null,null,null,null,null,null,null,null,null,null,null,null,null,null,null,null,null,null,"","","",{"$error":"#DIV/0!"},{"$error":"#DIV/0!"},{"$error":"#DIV/0!"},0,0,0,0,0,0,0,0,"","","","","","","","","","",""]
[null,null,null,null,null,null,null,null,null,null,null,null,null,null,null,null,null,null,null,null,null,null,null,null,null,null,null,null,null,55,{"$error":"#N/A"},null,null,null,null,null,null,null,null,null,null,null,null,null,null,null,null,null,null,null,null,null,null,null,null,null,"","","",{"$error":"#DIV/0!"},{"$error":"#DIV/0!"},{"$error":"#DIV/0!"},0,0,0,0,0,0,0,0,"","","","","","","","","","",""]
[null,null,null,null,null,null,null,null,null,null,null,null,null,null,null,null,null,null,null,null,null,null,null,null,null,null,null,null,null,56,{"$error":"#N/A"},null,null,null,null,null,null,null,null,null,null,null,null,null,null,null,null,null,null,null,null,null,null,null,null,null,"","","",{"$error":"#DIV/0!"},{"$error":"#DIV/0!"},{"$error":"#DIV/0!"},0,0,0,0,0,0,0,0,"","","","","","","","","","",""]
[null,null,null,null,null,null,null,null,null,null,null,null,null,null,null,null,null,null,null,null,null,null,null,null,null,null,null,null,null,57,{"$error":"#N/A"},null,null,null,null,null,null,null,null,null,null,null,null,null,null,null,null,null,null,null,null,null,null,null,null,null,"","","",{"$error":"#DIV/0!"},{"$error":"#DIV/0!"},{"$error":"#DIV/0!"},0,0,0,0,0,0,0,0,"","","","","","","","","","",""]
[null,null,null,null,null,null,null,null,null,null,null,null,null,null,null,null,null,null,null,null,null,null,null,null,null,null,null,null,null,58,{"$error":"#N/A"},null,null,null,null,null,null,null,null,null,null,null,null,null,null,null,null,null,null,null,null,null,null,null,null,null,"","","",{"$error":"#DIV/0!"},{"$error":"#DIV/0!"},{"$error":"#DIV/0!"},0,0,0,0,0,0,0,0,"","","","","","","","","","",""]
[null,null,null,null,null,null,null,null,null,null,null,null,null,null,null,null,null,null,null,null,null,null,null,null,null,null,null,null,null,59,{"$error":"#N/A"},null,null,null,null,null,null,null,null,null,null,null,null,null,null,null,null,null,null,null,null,null,null,null,null,null,"","","",{"$error":"#DIV/0!"},{"$error":"#DIV/0!"},{"$error":"#DIV/0!"},0,0,0,0,0,0,0,0,"","","","","","","","","","",""]
[null,null,null,null,null,null,null,null,null,null,null,null,null,null,null,null,null,null,null,null,null,null,null,null,null,null,null,null,null,60,{"$error":"#N/A"},null,null,null,null,null,null,null,null,null,null,null,null,null,null,null,null,null,null,null,null,null,null,null,null,null,"","","",{"$error":"#DIV/0!"},{"$error":"#DIV/0!"},{"$error":"#DIV/0!"},0,0,0,0,0,0,0,0,"","","","","","","","","","",""]
[null,null,null,null,null,null,null,null,null,null,null,null,null,null,null,null,null,null,null,null,null,null,null,null,null,null,null,null,null,61,{"$error":"#N/A"},null,null,null,null,null,null,null,null,null,null,null,null,null,null,null,null,null,null,null,null,null,null,null,null,null,"","","",{"$error":"#DIV/0!"},{"$error":"#DIV/0!"},{"$error":"#DIV/0!"},0,0,0,0,0,0,0,0,"","","","","","","","","","",""]
[null,null,null,null,null,null,null,null,null,null,null,null,null,null,null,null,null,null,null,null,null,null,null,null,null,null,null,null,null,62,{"$error":"#N/A"},null,null,null,null,null,null,null,null,null,null,null,null,null,null,null,null,null,null,null,null,null,null,null,null,null,"","","",{"$error":"#DIV/0!"},{"$error":"#DIV/0!"},{"$error":"#DIV/0!"},0,0,0,0,0,0,0,0,"","","","","","","","","","",""]
[null,null,null,null,null,null,null,null,null,null,null,null,null,null,null,null,null,null,null,null,null,null,null,null,null,null,null,null,null,63,{"$error":"#N/A"},null,null,null,null,null,null,null,null,null,null,null,null,null,null,null,null,null,null,null,null,null,null,null,null,null,"","","",{"$error":"#DIV/0!"},{"$error":"#DIV/0!"},{"$error":"#DIV/0!"},0,0,0,0,0,0,0,0,"","","","","","","","","","",""]
[null,null,null,null,null,null,null,null,null,null,null,null,null,null,null,null,null,null,null,null,null,null,null,null,null,null,null,null,null,64,{"$error":"#N/A"},null,null,null,null,null,null,null,null,null,null,null,null,null,null,null,null,null,null,null,null,null,null,null,null,null,"","","",{"$error":"#DIV/0!"},{"$error":"#DIV/0!"},{"$error":"#DIV/0!"},0,0,0,0,0,0,0,0,"","","","","","","","","","",""]
[null,null,null,null,null,null,null,null,null,null,null,null,null,null,null,null,null,null,null,null,null,null,null,null,null,null,null,null,null,65,{"$f":"VLOOKUP(AF87,$BA$23:$BB$44,2,0)","v":{"$error":"#N/A"}},null,null,null,null,null,null,null,null,null,null,null,null,null,null,null,null,null,null,null,null,null,null,null,null,null,{"$f":"AF87&AI87","v":""},{"$f":"AF87&AG87","v":""},{"$f":"AF87&AJ87","v":""},{"$f":"IF(OR(AK87=\"○\",AK87>AK$12),AK$12,AK87)","v":{"$error":"#DIV/0!"}},{"$f":"IF(OR(AL87=\"○\",AL87>AL$12),AL$12,AL87)","v":{"$error":"#DIV/0!"}},{"$f":"IF(OR(AM87=\"○\",AM87>AM$12),AM$12,AM87)","v":{"$error":"#DIV/0!"}},{"$f":"IF(OR(AN87=\"○\",AN87>AN$12),AN$12,AN87)","v":0},{"$f":"IF(OR(AO87=\"○\",AO87>AO$12),AO$12,AO87)","v":0},{"$f":"IF(OR(AP87=\"○\",AP87>AP$12),AP$12,AP87)","v":0},{"$f":"IF(OR(AQ87=\"○\",AQ87>AQ$12),AQ$12,AQ87)","v":0},{"$f":"IF(OR(AR87=\"○\",AR87>AR$12),AR$12,AR87)","v":0},{"$f":"IF(OR(AS87=\"○\",AS87>AS$12),AS$12,AS87)","v":0},{"$f":"IF(OR(AT87=\"○\",AT87>AT$12),AT$12,AT87)","v":0},{"$f":"IF(OR(AU87=\"○\",AU87>AU$12),AU$12,AU87)","v":0},"","","","","","","","","","",""]
[null,null,null,null,null,null,null,null,null,null,null,null,null,null,null,null,null,null,null,null,null,null,null,null,null,null,null,null,null,66,{"$error":"#N/A"},null,null,null,null,null,null,null,null,null,null,null,null,null,null,null,null,null,null,null,null,null,null,null,null,null,"","","",{"$error":"#DIV/0!"},{"$error":"#DIV/0!"},{"$error":"#DIV/0!"},0,0,0,0,0,0,0,0,{"$f":"IF(AND(AK88<>\"\",AK88<>0,$AJ88=\"3年以上\"),1,\"\")","v":""},{"$f":"IF(AND(AL88<>\"\",AL88<>0,$AJ88=\"3年以上\"),1,\"\")","v":""},{"$f":"IF(AND(AM88<>\"\",AM88<>0,$AJ88=\"3年以上\"),1,\"\")","v":""},{"$f":"IF(AND(AN88<>\"\",AN88<>0,$AJ88=\"3年以上\"),1,\"\")","v":""},{"$f":"IF(AND(AO88<>\"\",AO88<>0,$AJ88=\"3年以上\"),1,\"\")","v":""},{"$f":"IF(AND(AP88<>\"\",AP88<>0,$AJ88=\"3年以上\"),1,\"\")","v":""},{"$f":"IF(AND(AQ88<>\"\",AQ88<>0,$AJ88=\"3年以上\"),1,\"\")","v":""},{"$f":"IF(AND(AR88<>\"\",AR88<>0,$AJ88=\"3年以上\"),1,\"\")","v":""},{"$f":"IF(AND(AS88<>\"\",AS88<>0,$AJ88=\"3年以上\"),1,\"\")","v":""},{"$f":"IF(AND(AT88<>\"\",AT88<>0,$AJ88=\"3年以上\"),1,\"\")","v":""},{"$f":"IF(AND(AU88<>\"\",AU88<>0,$AJ88=\"3年以上\"),1,\"\")","v":""}]
[null,null,null,null,null,null,null,null,null,null,null,null,null,null,null,null,null,null,null,null,null,null,null,null,null,null,null,null,null,67,{"$error":"#N/A"},null,null,null,null,null,null,null,null,null,null,null,null,null,null,null,null,null,null,null,null,null,null,null,null,null,"","","",{"$error":"#DIV/0!"},{"$error":"#DIV/0!"},{"$error":"#DIV/0!"},0,0,0,0,0,0,0,0,"","","","","","","","","","",""]
[null,null,null,null,null,null,null,null,null,null,null,null,null,null,null,null,null,null,null,null,null,null,null,null,null,null,null,null,null,68,{"$error":"#N/A"},null,null,null,null,null,null,null,null,null,null,null,null,null,null,null,null,null,null,null,null,null,null,null,null,null,"","","",{"$error":"#DIV/0!"},{"$error":"#DIV/0!"},{"$error":"#DIV/0!"},0,0,0,0,0,0,0,0,"","","","","","","","","","",""]
[null,null,null,null,null,null,null,null,null,null,null,null,null,null,null,null,null,null,null,null,null,null,null,null,null,null,null,null,null,69,{"$error":"#N/A"},null,null,null,null,null,null,null,null,null,null,null,null,null,null,null,null,null,null,null,null,null,null,null,null,null,"","","",{"$error":"#DIV/0!"},{"$error":"#DIV/0!"},{"$error":"#DIV/0!"},0,0,0,0,0,0,0,0,"","","","","","","","","","",""]
[null,null,null,null,null,null,null,null,null,null,null,null,null,null,null,null,null,null,null,null,null,null,null,null,null,null,null,null,null,70,{"$error":"#N/A"},null,null,null,null,null,null,null,null,null,null,null,null,null,null,null,null,null,null,null,null,null,null,null,null,null,"","","",{"$error":"#DIV/0!"},{"$error":"#DIV/0!"},{"$error":"#DIV/0!"},0,0,0,0,0,0,0,0,"","","","","","","","","","",""]
[null,null,null,null,null,null,null,null,null,null,null,null,null,null,null,null,null,null,null,null,null,null,null,null,null,null,null,null,null,71,{"$error":"#N/A"},null,null,null,null,null,null,null,null,null,null,null,null,null,null,null,null,null,null,null,null,null,null,null,null,null,"","","",{"$error":"#DIV/0!"},{"$error":"#DIV/0!"},{"$error":"#DIV/0!"},0,0,0,0,0,0,0,0,"","","","","","","","","","",""]
[null,null,null,null,null,null,null,null,null,null,null,null,null,null,null,null,null,null,null,null,null,null,null,null,null,null,null,null,null,72,{"$error":"#N/A"},null,null,null,null,null,null,null,null,null,null,null,null,null,null,null,null,null,null,null,null,null,null,null,null,null,"","","",{"$error":"#DIV/0!"},{"$error":"#DIV/0!"},{"$error":"#DIV/0!"},0,0,0,0,0,0,0,0,"","","","","","","","","","",""]
[null,null,null,null,null,null,null,null,null,null,null,null,null,null,null,null,null,null,null,null,null,null,null,null,null,null,null,null,null,73,{"$error":"#N/A"},null,null,null,null,null,null,null,null,null,null,null,null,null,null,null,null,null,null,null,null,null,null,null,null,null,"","","",{"$error":"#DIV/0!"},{"$error":"#DIV/0!"},{"$error":"#DIV/0!"},0,0,0,0,0,0,0,0,"","","","","","","","","","",""]
[null,null,null,null,null,null,null,null,null,null,null,null,null,null,null,null,null,null,null,null,null,null,null,null,null,null,null,null,null,74,{"$error":"#N/A"},null,null,null,null,null,null,null,null,null,null,null,null,null,null,null,null,null,null,null,null,null,null,null,null,null,"","","",{"$error":"#DIV/0!"},{"$error":"#DIV/0!"},{"$error":"#DIV/0!"},0,0,0,0,0,0,0,0,"","","","","","","","","","",""]
[null,null,null,null,null,null,null,null,null,null,null,null,null,null,null,null,null,null,null,null,null,null,null,null,null,null,null,null,null,75,{"$error":"#N/A"},null,null,null,null,null,null,null,null,null,null,null,null,null,null,null,null,null,null,null,null,null,null,null,null,null,"","","",{"$error":"#DIV/0!"},{"$error":"#DIV/0!"},{"$error":"#DIV/0!"},0,0,0,0,0,0,0,0,"","","","","","","","","","",""]
[null,null,null,null,null,null,null,null,null,null,null,null,null,null,null,null,null,null,null,null,null,null,null,null,null,null,null,null,null,76,{"$error":"#N/A"},null,null,null,null,null,null,null,null,null,null,null,null,null,null,null,null,null,null,null,null,null,null,null,null,null,"","","",{"$error":"#DIV/0!"},{"$error":"#DIV/0!"},{"$error":"#DIV/0!"},0,0,0,0,0,0,0,0,"","","","","","","","","","",""]
[null,null,null,null,null,null,null,null,null,null,null,null,null,null,null,null,null,null,null,null,null,null,null,null,null,null,null,null,null,77,{"$error":"#N/A"},null,null,null,null,null,null,null,null,null,null,null,null,null,null,null,null,null,null,null,null,null,null,null,null,null,"","","",{"$error":"#DIV/0!"},{"$error":"#DIV/0!"},{"$error":"#DIV/0!"},0,0,0,0,0,0,0,0,"","","","","","","","","","",""]
[null,null,null,null,null,null,null,null,null,null,null,null,null,null,null,null,null,null,null,null,null,null,null,null,null,null,null,null,null,78,{"$error":"#N/A"},null,null,null,null,null,null,null,null,null,null,null,null,null,null,null,null,null,null,null,null,null,null,null,null,null,"","","",{"$error":"#DIV/0!"},{"$error":"#DIV/0!"},{"$error":"#DIV/0!"},0,0,0,0,0,0,0,0,"","","","","","","","","","",""]
[null,null,null,null,null,null,null,null,null,null,null,null,null,null,null,null,null,null,null,null,null,null,null,null,null,null,null,null,null,79,{"$error":"#N/A"},null,null,null,null,null,null,null,null,null,null,null,null,null,null,null,null,null,null,null,null,null,null,null,null,null,"","","",{"$error":"#DIV/0!"},{"$error":"#DIV/0!"},{"$error":"#DIV/0!"},0,0,0,0,0,0,0,0,"","","","","","","","","","",""]
[null,null,null,null,null,null,null,null,null,null,null,null,null,null,null,null,null,null,null,null,null,null,null,null,null,null,null,null,null,80,{"$error":"#N/A"},null,null,null,null,null,null,null,null,null,null,null,null,null,null,null,null,null,null,null,null,null,null,null,null,null,"","","",{"$error":"#DIV/0!"},{"$error":"#DIV/0!"},{"$error":"#DIV/0!"},0,0,0,0,0,0,0,0,"","","","","","","","","","",""]
[null,null,null,null,null,null,null,null,null,null,null,null,null,null,null,null,null,null,null,null,null,null,null,null,null,null,null,null,null,81,{"$error":"#N/A"},null,null,null,null,null,null,null,null,null,null,null,null,null,null,null,null,null,null,null,null,null,null,null,null,null,"","","",{"$error":"#DIV/0!"},{"$error":"#DIV/0!"},{"$error":"#DIV/0!"},0,0,0,0,0,0,0,0,"","","","","","","","","","",""]
[null,null,null,null,null,null,null,null,null,null,null,null,null,null,null,null,null,null,null,null,null,null,null,null,null,null,null,null,null,82,{"$error":"#N/A"},null,null,null,null,null,null,null,null,null,null,null,null,null,null,null,null,null,null,null,null,null,null,null,null,null,"","","",{"$error":"#DIV/0!"},{"$error":"#DIV/0!"},{"$error":"#DIV/0!"},0,0,0,0,0,0,0,0,"","","","","","","","","","",""]
[null,null,null,null,null,null,null,null,null,null,null,null,null,null,null,null,null,null,null,null,null,null,null,null,null,null,null,null,null,83,{"$error":"#N/A"},null,null,null,null,null,null,null,null,null,null,null,null,null,null,null,null,null,null,null,null,null,null,null,null,null,"","","",{"$error":"#DIV/0!"},{"$error":"#DIV/0!"},{"$error":"#DIV/0!"},0,0,0,0,0,0,0,0,"","","","","","","","","","",""]
[null,null,null,null,null,null,null,null,null,null,null,null,null,null,null,null,null,null,null,null,null,null,null,null,null,null,null,null,null,84,{"$error":"#N/A"},null,null,null,null,null,null,null,null,null,null,null,null,null,null,null,null,null,null,null,null,null,null,null,null,null,"","","",{"$error":"#DIV/0!"},{"$error":"#DIV/0!"},{"$error":"#DIV/0!"},0,0,0,0,0,0,0,0,"","","","","","","","","","",""]
[null,null,null,null,null,null,null,null,null,null,null,null,null,null,null,null,null,null,null,null,null,null,null,null,null,null,null,null,null,85,{"$error":"#N/A"},null,null,null,null,null,null,null,null,null,null,null,null,null,null,null,null,null,null,null,null,null,null,null,null,null,"","","",{"$error":"#DIV/0!"},{"$error":"#DIV/0!"},{"$error":"#DIV/0!"},0,0,0,0,0,0,0,0,"","","","","","","","","","",""]
[null,null,null,null,null,null,null,null,null,null,null,null,null,null,null,null,null,null,null,null,null,null,null,null,null,null,null,null,null,86,{"$error":"#N/A"},null,null,null,null,null,null,null,null,null,null,null,null,null,null,null,null,null,null,null,null,null,null,null,null,null,"","","",{"$error":"#DIV/0!"},{"$error":"#DIV/0!"},{"$error":"#DIV/0!"},0,0,0,0,0,0,0,0,"","","","","","","","","","",""]
[null,null,null,null,null,null,null,null,null,null,null,null,null,null,null,null,null,null,null,null,null,null,null,null,null,null,null,null,null,87,{"$error":"#N/A"},null,null,null,null,null,null,null,null,null,null,null,null,null,null,null,null,null,null,null,null,null,null,null,null,null,"","","",{"$error":"#DIV/0!"},{"$error":"#DIV/0!"},{"$error":"#DIV/0!"},0,0,0,0,0,0,0,0,"","","","","","","","","","",""]
[null,null,null,null,null,null,null,null,null,null,null,null,null,null,null,null,null,null,null,null,null,null,null,null,null,null,null,null,null,88,{"$error":"#N/A"},null,null,null,null,null,null,null,null,null,null,null,null,null,null,null,null,null,null,null,null,null,null,null,null,null,"","","",{"$error":"#DIV/0!"},{"$error":"#DIV/0!"},{"$error":"#DIV/0!"},0,0,0,0,0,0,0,0,"","","","","","","","","","",""]
[null,null,null,null,null,null,null,null,null,null,null,null,null,null,null,null,null,null,null,null,null,null,null,null,null,null,null,null,null,89,{"$error":"#N/A"},null,null,null,null,null,null,null,null,null,null,null,null,null,null,null,null,null,null,null,null,null,null,null,null,null,"","","",{"$error":"#DIV/0!"},{"$error":"#DIV/0!"},{"$error":"#DIV/0!"},0,0,0,0,0,0,0,0,"","","","","","","","","","",""]
[null,null,null,null,null,null,null,null,null,null,null,null,null,null,null,null,null,null,null,null,null,null,null,null,null,null,null,null,null,90,{"$error":"#N/A"},null,null,null,null,null,null,null,null,null,null,null,null,null,null,null,null,null,null,null,null,null,null,null,null,null,"","","",{"$error":"#DIV/0!"},{"$error":"#DIV/0!"},{"$error":"#DIV/0!"},0,0,0,0,0,0,0,0,"","","","","","","","","","",""]
[null,null,null,null,null,null,null,null,null,null,null,null,null,null,null,null,null,null,null,null,null,null,null,null,null,null,null,null,null,91,{"$error":"#N/A"},null,null,null,null,null,null,null,null,null,null,null,null,null,null,null,null,null,null,null,null,null,null,null,null,null,"","","",{"$error":"#DIV/0!"},{"$error":"#DIV/0!"},{"$error":"#DIV/0!"},0,0,0,0,0,0,0,0,"","","","","","","","","","",""]
[null,null,null,null,null,null,null,null,null,null,null,null,null,null,null,null,null,null,null,null,null,null,null,null,null,null,null,null,null,92,{"$error":"#N/A"},null,null,null,null,null,null,null,null,null,null,null,null,null,null,null,null,null,null,null,null,null,null,null,null,null,"","","",{"$error":"#DIV/0!"},{"$error":"#DIV/0!"},{"$error":"#DIV/0!"},0,0,0,0,0,0,0,0,"","","","","","","","","","",""]
[null,null,null,null,null,null,null,null,null,null,null,null,null,null,null,null,null,null,null,null,null,null,null,null,null,null,null,null,null,93,{"$error":"#N/A"},null,null,null,null,null,null,null,null,null,null,null,null,null,null,null,null,null,null,null,null,null,null,null,null,null,"","","",{"$error":"#DIV/0!"},{"$error":"#DIV/0!"},{"$error":"#DIV/0!"},0,0,0,0,0,0,0,0,"","","","","","","","","","",""]
[null,null,null,null,null,null,null,null,null,null,null,null,null,null,null,null,null,null,null,null,null,null,null,null,null,null,null,null,null,94,{"$error":"#N/A"},null,null,null,null,null,null,null,null,null,null,null,null,null,null,null,null,null,null,null,null,null,null,null,null,null,"","","",{"$error":"#DIV/0!"},{"$error":"#DIV/0!"},{"$error":"#DIV/0!"},0,0,0,0,0,0,0,0,"","","","","","","","","","",""]
[null,null,null,null,null,null,null,null,null,null,null,null,null,null,null,null,null,null,null,null,null,null,null,null,null,null,null,null,null,95,{"$error":"#N/A"},null,null,null,null,null,null,null,null,null,null,null,null,null,null,null,null,null,null,null,null,null,null,null,null,null,"","","",{"$error":"#DIV/0!"},{"$error":"#DIV/0!"},{"$error":"#DIV/0!"},0,0,0,0,0,0,0,0,"","","","","","","","","","",""]
[null,null,null,null,null,null,null,null,null,null,null,null,null,null,null,null,null,null,null,null,null,null,null,null,null,null,null,null,null,96,{"$error":"#N/A"},null,null,null,null,null,null,null,null,null,null,null,null,null,null,null,null,null,null,null,null,null,null,null,null,null,"","","",{"$error":"#DIV/0!"},{"$error":"#DIV/0!"},{"$error":"#DIV/0!"},0,0,0,0,0,0,0,0,"","","","","","","","","","",""]
[null,null,null,null,null,null,null,null,null,null,null,null,null,null,null,null,null,null,null,null,null,null,null,null,null,null,null,null,null,97,{"$f":"VLOOKUP(AF119,$BA$23:$BB$44,2,0)","v":{"$error":"#N/A"}},null,null,null,null,null,null,null,null,null,null,null,null,null,null,null,null,null,null,null,null,null,null,null,null,null,{"$f":"AF119&AI119","v":""},{"$f":"AF119&AG119","v":""},{"$f":"AF119&AJ119","v":""},{"$f":"IF(OR(AK119=\"○\",AK119>AK$12),AK$12,AK119)","v":{"$error":"#DIV/0!"}},{"$f":"IF(OR(AL119=\"○\",AL119>AL$12),AL$12,AL119)","v":{"$error":"#DIV/0!"}},{"$f":"IF(OR(AM119=\"○\",AM119>AM$12),AM$12,AM119)","v":{"$error":"#DIV/0!"}},{"$f":"IF(OR(AN119=\"○\",AN119>AN$12),AN$12,AN119)","v":0},{"$f":"IF(OR(AO119=\"○\",AO119>AO$12),AO$12,AO119)","v":0},{"$f":"IF(OR(AP119=\"○\",AP119>AP$12),AP$12,AP119)","v":0},{"$f":"IF(OR(AQ119=\"○\",AQ119>AQ$12),AQ$12,AQ119)","v":0},{"$f":"IF(OR(AR119=\"○\",AR119>AR$12),AR$12,AR119)","v":0},{"$f":"IF(OR(AS119=\"○\",AS119>AS$12),AS$12,AS119)","v":0},{"$f":"IF(OR(AT119=\"○\",AT119>AT$12),AT$12,AT119)","v":0},{"$f":"IF(OR(AU119=\"○\",AU119>AU$12),AU$12,AU119)","v":0},"","","","","","","","","","",""]
[null,null,null,null,null,null,null,null,null,null,null,null,null,null,null,null,null,null,null,null,null,null,null,null,null,null,null,null,null,98,{"$error":"#N/A"},null,null,null,null,null,null,null,null,null,null,null,null,null,null,null,null,null,null,null,null,null,null,null,null,null,"","","",{"$error":"#DIV/0!"},{"$error":"#DIV/0!"},{"$error":"#DIV/0!"},0,0,0,0,0,0,0,0,"","","","","","","","","","",""]
[null,null,null,null,null,null,null,null,null,null,null,null,null,null,null,null,null,null,null,null,null,null,null,null,null,null,null,null,null,99,{"$error":"#N/A"},null,null,null,null,null,null,null,null,null,null,null,null,null,null,null,null,null,null,null,null,null,null,null,null,null,"","","",{"$error":"#DIV/0!"},{"$error":"#DIV/0!"},{"$error":"#DIV/0!"},0,0,0,0,0,0,0,0,"","","","","","","","","","",""]
[null,null,null,null,null,null,null,null,null,null,null,null,null,null,null,null,null,null,null,null,null,null,null,null,null,null,null,null,null,100,{"$error":"#N/A"},null,null,null,null,null,null,null,null,null,null,null,null,null,null,null,null,null,null,null,null,null,null,null,null,null,"","","",{"$error":"#DIV/0!"},{"$error":"#DIV/0!"},{"$error":"#DIV/0!"},0,0,0,0,0,0,0,0,"","","","","","","","","","",""]
[null,null,null,null,null,null,null,null,null,null,null,null,null,null,null,null,null,null,null,null,null,null,null,null,null,null,null,null,null,101,{"$error":"#N/A"},null,null,null,null,null,null,null,null,null,null,null,null,null,null,null,null,null,null,null,null,null,null,null,null,null,"","","",{"$error":"#DIV/0!"},{"$error":"#DIV/0!"},{"$error":"#DIV/0!"},0,0,0,0,0,0,0,0,"","","","","","","","","","",""]
[null,null,null,null,null,null,null,null,null,null,null,null,null,null,null,null,null,null,null,null,null,null,null,null,null,null,null,null,null,102,{"$error":"#N/A"},null,null,null,null,null,null,null,null,null,null,null,null,null,null,null,null,null,null,null,null,null,null,null,null,null,"","","",{"$error":"#DIV/0!"},{"$error":"#DIV/0!"},{"$error":"#DIV/0!"},0,0,0,0,0,0,0,0,"","","","","","","","","","",""]
[null,null,null,null,null,null,null,null,null,null,null,null,null,null,null,null,null,null,null,null,null,null,null,null,null,null,null,null,null,103,{"$error":"#N/A"},null,null,null,null,null,null,null,null,null,null,null,null,null,null,null,null,null,null,null,null,null,null,null,null,null,"","","",{"$error":"#DIV/0!"},{"$error":"#DIV/0!"},{"$error":"#DIV/0!"},0,0,0,0,0,0,0,0,"","","","","","","","","","",""]
[null,null,null,null,null,null,null,null,null,null,null,null,null,null,null,null,null,null,null,null,null,null,null,null,null,null,null,null,null,104,{"$error":"#N/A"},null,null,null,null,null,null,null,null,null,null,null,null,null,null,null,null,null,null,null,null,null,null,null,null,null,"","","",{"$error":"#DIV/0!"},{"$error":"#DIV/0!"},{"$error":"#DIV/0!"},0,0,0,0,0,0,0,0,"","","","","","","","","","",""]
[null,null,null,null,null,null,null,null,null,null,null,null,null,null,null,null,null,null,null,null,null,null,null,null,null,null,null,null,null,105,{"$error":"#N/A"},null,null,null,null,null,null,null,null,null,null,null,null,null,null,null,null,null,null,null,null,null,null,null,null,null,"","","",{"$error":"#DIV/0!"},{"$error":"#DIV/0!"},{"$error":"#DIV/0!"},0,0,0,0,0,0,0,0,"","","","","","","","","","",""]
[null,null,null,null,null,null,null,null,null,null,null,null,null,null,null,null,null,null,null,null,null,null,null,null,null,null,null,null,null,106,{"$error":"#N/A"},null,null,null,null,null,null,null,null,null,null,null,null,null,null,null,null,null,null,null,null,null,null,null,null,null,"","","",{"$error":"#DIV/0!"},{"$error":"#DIV/0!"},{"$error":"#DIV/0!"},0,0,0,0,0,0,0,0,"","","","","","","","","","",""]
[null,null,null,null,null,null,null,null,null,null,null,null,null,null,null,null,null,null,null,null,null,null,null,null,null,null,null,null,null,107,{"$error":"#N/A"},null,null,null,null,null,null,null,null,null,null,null,null,null,null,null,null,null,null,null,null,null,null,null,null,null,"","","",{"$error":"#DIV/0!"},{"$error":"#DIV/0!"},{"$error":"#DIV/0!"},0,0,0,0,0,0,0,0,"","","","","","","","","","",""]
[null,null,null,null,null,null,null,null,null,null,null,null,null,null,null,null,null,null,null,null,null,null,null,null,null,null,null,null,null,108,{"$error":"#N/A"},null,null,null,null,null,null,null,null,null,null,null,null,null,null,null,null,null,null,null,null,null,null,null,null,null,"","","",{"$error":"#DIV/0!"},{"$error":"#DIV/0!"},{"$error":"#DIV/0!"},0,0,0,0,0,0,0,0,"","","","","","","","","","",""]
[null,null,null,null,null,null,null,null,null,null,null,null,null,null,null,null,null,null,null,null,null,null,null,null,null,null,null,null,null,109,{"$error":"#N/A"},null,null,null,null,null,null,null,null,null,null,null,null,null,null,null,null,null,null,null,null,null,null,null,null,null,"","","",{"$error":"#DIV/0!"},{"$error":"#DIV/0!"},{"$error":"#DIV/0!"},0,0,0,0,0,0,0,0,"","","","","","","","","","",""]
[null,null,null,null,null,null,null,null,null,null,null,null,null,null,null,null,null,null,null,null,null,null,null,null,null,null,null,null,null,110,{"$error":"#N/A"},null,null,null,null,null,null,null,null,null,null,null,null,null,null,null,null,null,null,null,null,null,null,null,null,null,"","","",{"$error":"#DIV/0!"},{"$error":"#DIV/0!"},{"$error":"#DIV/0!"},0,0,0,0,0,0,0,0,"","","","","","","","","","",""]
[null,null,null,null,null,null,null,null,null,null,null,null,null,null,null,null,null,null,null,null,null,null,null,null,null,null,null,null,null,111,{"$error":"#N/A"},null,null,null,null,null,null,null,null,null,null,null,null,null,null,null,null,null,null,null,null,null,null,null,null,null,"","","",{"$error":"#DIV/0!"},{"$error":"#DIV/0!"},{"$error":"#DIV/0!"},0,0,0,0,0,0,0,0,"","","","","","","","","","",""]
[null,null,null,null,null,null,null,null,null,null,null,null,null,null,null,null,null,null,null,null,null,null,null,null,null,null,null,null,null,112,{"$error":"#N/A"},null,null,null,null,null,null,null,null,null,null,null,null,null,null,null,null,null,null,null,null,null,null,null,null,null,"","","",{"$error":"#DIV/0!"},{"$error":"#DIV/0!"},{"$error":"#DIV/0!"},0,0,0,0,0,0,0,0,"","","","","","","","","","",""]
[null,null,null,null,null,null,null,null,null,null,null,null,null,null,null,null,null,null,null,null,null,null,null,null,null,null,null,null,null,113,{"$error":"#N/A"},null,null,null,null,null,null,null,null,null,null,null,null,null,null,null,null,null,null,null,null,null,null,null,null,null,"","","",{"$error":"#DIV/0!"},{"$error":"#DIV/0!"},{"$error":"#DIV/0!"},0,0,0,0,0,0,0,0,"","","","","","","","","","",""]
[null,null,null,null,null,null,null,null,null,null,null,null,null,null,null,null,null,null,null,null,null,null,null,null,null,null,null,null,null,114,{"$error":"#N/A"},null,null,null,null,null,null,null,null,null,null,null,null,null,null,null,null,null,null,null,null,null,null,null,null,null,"","","",{"$error":"#DIV/0!"},{"$error":"#DIV/0!"},{"$error":"#DIV/0!"},0,0,0,0,0,0,0,0,"","","","","","","","","","",""]
[null,null,null,null,null,null,null,null,null,null,null,null,null,null,null,null,null,null,null,null,null,null,null,null,null,null,null,null,null,115,{"$error":"#N/A"},null,null,null,null,null,null,null,null,null,null,null,null,null,null,null,null,null,null,null,null,null,null,null,null,null,"","","",{"$error":"#DIV/0!"},{"$error":"#DIV/0!"},{"$error":"#DIV/0!"},0,0,0,0,0,0,0,0,"","","","","","","","","","",""]
[null,null,null,null,null,null,null,null,null,null,null,null,null,null,null,null,null,null,null,null,null,null,null,null,null,null,null,null,null,116,{"$error":"#N/A"},null,null,null,null,null,null,null,null,null,null,null,null,null,null,null,null,null,null,null,null,null,null,null,null,null,"","","",{"$error":"#DIV/0!"},{"$error":"#DIV/0!"},{"$error":"#DIV/0!"},0,0,0,0,0,0,0,0,"","","","","","","","","","",""]
[null,null,null,null,null,null,null,null,null,null,null,null,null,null,null,null,null,null,null,null,null,null,null,null,null,null,null,null,null,117,{"$error":"#N/A"},null,null,null,null,null,null,null,null,null,null,null,null,null,null,null,null,null,null,null,null,null,null,null,null,null,"","","",{"$error":"#DIV/0!"},{"$error":"#DIV/0!"},{"$error":"#DIV/0!"},0,0,0,0,0,0,0,0,"","","","","","","","","","",""]
[null,null,null,null,null,null,null,null,null,null,null,null,null,null,null,null,null,null,null,null,null,null,null,null,null,null,null,null,null,118,{"$error":"#N/A"},null,null,null,null,null,null,null,null,null,null,null,null,null,null,null,null,null,null,null,null,null,null,null,null,null,"","","",{"$error":"#DIV/0!"},{"$error":"#DIV/0!"},{"$error":"#DIV/0!"},0,0,0,0,0,0,0,0,"","","","","","","","","","",""]
[null,null,null,null,null,null,null,null,null,null,null,null,null,null,null,null,null,null,null,null,null,null,null,null,null,null,null,null,null,119,{"$error":"#N/A"},null,null,null,null,null,null,null,null,null,null,null,null,null,null,null,null,null,null,null,null,null,null,null,null,null,"","","",{"$error":"#DIV/0!"},{"$error":"#DIV/0!"},{"$error":"#DIV/0!"},0,0,0,0,0,0,0,0,"","","","","","","","","","",""]
[null,null,null,null,null,null,null,null,null,null,null,null,null,null,null,null,null,null,null,null,null,null,null,null,null,null,null,null,null,120,{"$error":"#N/A"},null,null,null,null,null,null,null,null,null,null,null,null,null,null,null,null,null,null,null,null,null,null,null,null,null,"","","",{"$error":"#DIV/0!"},{"$error":"#DIV/0!"},{"$error":"#DIV/0!"},0,0,0,0,0,0,0,0,"","","","","","","","","","",""]
[null,null,null,null,null,null,null,null,null,null,null,null,null,null,null,null,null,null,null,null,null,null,null,null,null,null,null,null,null,121,{"$error":"#N/A"},null,null,null,null,null,null,null,null,null,null,null,null,null,null,null,null,null,null,null,null,null,null,null,null,null,"","","",{"$error":"#DIV/0!"},{"$error":"#DIV/0!"},{"$error":"#DIV/0!"},0,0,0,0,0,0,0,0,"","","","","","","","","","",""]
[null,null,null,null,null,null,null,null,null,null,null,null,null,null,null,null,null,null,null,null,null,null,null,null,null,null,null,null,null,122,{"$error":"#N/A"},null,null,null,null,null,null,null,null,null,null,null,null,null,null,null,null,null,null,null,null,null,null,null,null,null,"","","",{"$error":"#DIV/0!"},{"$error":"#DIV/0!"},{"$error":"#DIV/0!"},0,0,0,0,0,0,0,0,"","","","","","","","","","",""]
[null,null,null,null,null,null,null,null,null,null,null,null,null,null,null,null,null,null,null,null,null,null,null,null,null,null,null,null,null,123,{"$error":"#N/A"},null,null,null,null,null,null,null,null,null,null,null,null,null,null,null,null,null,null,null,null,null,null,null,null,null,"","","",{"$error":"#DIV/0!"},{"$error":"#DIV/0!"},{"$error":"#DIV/0!"},0,0,0,0,0,0,0,0,"","","","","","","","","","",""]
[null,null,null,null,null,null,null,null,null,null,null,null,null,null,null,null,null,null,null,null,null,null,null,null,null,null,null,null,null,124,{"$error":"#N/A"},null,null,null,null,null,null,null,null,null,null,null,null,null,null,null,null,null,null,null,null,null,null,null,null,null,"","","",{"$error":"#DIV/0!"},{"$error":"#DIV/0!"},{"$error":"#DIV/0!"},0,0,0,0,0,0,0,0,"","","","","","","","","","",""]
[null,null,null,null,null,null,null,null,null,null,null,null,null,null,null,null,null,null,null,null,null,null,null,null,null,null,null,null,null,125,{"$error":"#N/A"},null,null,null,null,null,null,null,null,null,null,null,null,null,null,null,null,null,null,null,null,null,null,null,null,null,"","","",{"$error":"#DIV/0!"},{"$error":"#DIV/0!"},{"$error":"#DIV/0!"},0,0,0,0,0,0,0,0,"","","","","","","","","","",""]
[null,null,null,null,null,null,null,null,null,null,null,null,null,null,null,null,null,null,null,null,null,null,null,null,null,null,null,null,null,126,{"$error":"#N/A"},null,null,null,null,null,null,null,null,null,null,null,null,null,null,null,null,null,null,null,null,null,null,null,null,null,"","","",{"$error":"#DIV/0!"},{"$error":"#DIV/0!"},{"$error":"#DIV/0!"},0,0,0,0,0,0,0,0,"","","","","","","","","","",""]
[null,null,null,null,null,null,null,null,null,null,null,null,null,null,null,null,null,null,null,null,null,null,null,null,null,null,null,null,null,127,{"$error":"#N/A"},null,null,null,null,null,null,null,null,null,null,null,null,null,null,null,null,null,null,null,null,null,null,null,null,null,"","","",{"$error":"#DIV/0!"},{"$error":"#DIV/0!"},{"$error":"#DIV/0!"},0,0,0,0,0,0,0,0,"","","","","","","","","","",""]
[null,null,null,null,null,null,null,null,null,null,null,null,null,null,null,null,null,null,null,null,null,null,null,null,null,null,null,null,null,128,{"$error":"#N/A"},null,null,null,null,null,null,null,null,null,null,null,null,null,null,null,null,null,null,null,null,null,null,null,null,null,"","","",{"$error":"#DIV/0!"},{"$error":"#DIV/0!"},{"$error":"#DIV/0!"},0,0,0,0,0,0,0,0,"","","","","","","","","","",""]
[null,null,null,null,null,null,null,null,null,null,null,null,null,null,null,null,null,null,null,null,null,null,null,null,null,null,null,null,null,129,{"$f":"VLOOKUP(AF151,$BA$23:$BB$44,2,0)","v":{"$error":"#N/A"}},null,null,null,null,null,null,null,null,null,null,null,null,null,null,null,null,null,null,null,null,null,null,null,null,null,{"$f":"AF151&AI151","v":""},{"$f":"AF151&AG151","v":""},{"$f":"AF151&AJ151","v":""},{"$f":"IF(OR(AK151=\"○\",AK151>AK$12),AK$12,AK151)","v":{"$error":"#DIV/0!"}},{"$f":"IF(OR(AL151=\"○\",AL151>AL$12),AL$12,AL151)","v":{"$error":"#DIV/0!"}},{"$f":"IF(OR(AM151=\"○\",AM151>AM$12),AM$12,AM151)","v":{"$error":"#DIV/0!"}},{"$f":"IF(OR(AN151=\"○\",AN151>AN$12),AN$12,AN151)","v":0},{"$f":"IF(OR(AO151=\"○\",AO151>AO$12),AO$12,AO151)","v":0},{"$f":"IF(OR(AP151=\"○\",AP151>AP$12),AP$12,AP151)","v":0},{"$f":"IF(OR(AQ151=\"○\",AQ151>AQ$12),AQ$12,AQ151)","v":0},{"$f":"IF(OR(AR151=\"○\",AR151>AR$12),AR$12,AR151)","v":0},{"$f":"IF(OR(AS151=\"○\",AS151>AS$12),AS$12,AS151)","v":0},{"$f":"IF(OR(AT151=\"○\",AT151>AT$12),AT$12,AT151)","v":0},{"$f":"IF(OR(AU151=\"○\",AU151>AU$12),AU$12,AU151)","v":0},"","","","","","","","","","",""]
[null,null,null,null,null,null,null,null,null,null,null,null,null,null,null,null,null,null,null,null,null,null,null,null,null,null,null,null,null,130,{"$error":"#N/A"},null,null,null,null,null,null,null,null,null,null,null,null,null,null,null,null,null,null,null,null,null,null,null,null,null,"","","",{"$error":"#DIV/0!"},{"$error":"#DIV/0!"},{"$error":"#DIV/0!"},0,0,0,0,0,0,0,0,{"$f":"IF(AND(AK152<>\"\",AK152<>0,$AJ152=\"3年以上\"),1,\"\")","v":""},{"$f":"IF(AND(AL152<>\"\",AL152<>0,$AJ152=\"3年以上\"),1,\"\")","v":""},{"$f":"IF(AND(AM152<>\"\",AM152<>0,$AJ152=\"3年以上\"),1,\"\")","v":""},{"$f":"IF(AND(AN152<>\"\",AN152<>0,$AJ152=\"3年以上\"),1,\"\")","v":""},{"$f":"IF(AND(AO152<>\"\",AO152<>0,$AJ152=\"3年以上\"),1,\"\")","v":""},{"$f":"IF(AND(AP152<>\"\",AP152<>0,$AJ152=\"3年以上\"),1,\"\")","v":""},{"$f":"IF(AND(AQ152<>\"\",AQ152<>0,$AJ152=\"3年以上\"),1,\"\")","v":""},{"$f":"IF(AND(AR152<>\"\",AR152<>0,$AJ152=\"3年以上\"),1,\"\")","v":""},{"$f":"IF(AND(AS152<>\"\",AS152<>0,$AJ152=\"3年以上\"),1,\"\")","v":""},{"$f":"IF(AND(AT152<>\"\",AT152<>0,$AJ152=\"3年以上\"),1,\"\")","v":""},{"$f":"IF(AND(AU152<>\"\",AU152<>0,$AJ152=\"3年以上\"),1,\"\")","v":""}]
[null,null,null,null,null,null,null,null,null,null,null,null,null,null,null,null,null,null,null,null,null,null,null,null,null,null,null,null,null,131,{"$error":"#N/A"},null,null,null,null,null,null,null,null,null,null,null,null,null,null,null,null,null,null,null,null,null,null,null,null,null,"","","",{"$error":"#DIV/0!"},{"$error":"#DIV/0!"},{"$error":"#DIV/0!"},0,0,0,0,0,0,0,0,"","","","","","","","","","",""]
[null,null,null,null,null,null,null,null,null,null,null,null,null,null,null,null,null,null,null,null,null,null,null,null,null,null,null,null,null,132,{"$error":"#N/A"},null,null,null,null,null,null,null,null,null,null,null,null,null,null,null,null,null,null,null,null,null,null,null,null,null,"","","",{"$error":"#DIV/0!"},{"$error":"#DIV/0!"},{"$error":"#DIV/0!"},0,0,0,0,0,0,0,0,"","","","","","","","","","",""]
[null,null,null,null,null,null,null,null,null,null,null,null,null,null,null,null,null,null,null,null,null,null,null,null,null,null,null,null,null,133,{"$error":"#N/A"},null,null,null,null,null,null,null,null,null,null,null,null,null,null,null,null,null,null,null,null,null,null,null,null,null,"","","",{"$error":"#DIV/0!"},{"$error":"#DIV/0!"},{"$error":"#DIV/0!"},0,0,0,0,0,0,0,0,"","","","","","","","","","",""]
[null,null,null,null,null,null,null,null,null,null,null,null,null,null,null,null,null,null,null,null,null,null,null,null,null,null,null,null,null,134,{"$error":"#N/A"},null,null,null,null,null,null,null,null,null,null,null,null,null,null,null,null,null,null,null,null,null,null,null,null,null,"","","",{"$error":"#DIV/0!"},{"$error":"#DIV/0!"},{"$error":"#DIV/0!"},0,0,0,0,0,0,0,0,"","","","","","","","","","",""]
[null,null,null,null,null,null,null,null,null,null,null,null,null,null,null,null,null,null,null,null,null,null,null,null,null,null,null,null,null,135,{"$error":"#N/A"},null,null,null,null,null,null,null,null,null,null,null,null,null,null,null,null,null,null,null,null,null,null,null,null,null,"","","",{"$error":"#DIV/0!"},{"$error":"#DIV/0!"},{"$error":"#DIV/0!"},0,0,0,0,0,0,0,0,"","","","","","","","","","",""]
[null,null,null,null,null,null,null,null,null,null,null,null,null,null,null,null,null,null,null,null,null,null,null,null,null,null,null,null,null,136,{"$error":"#N/A"},null,null,null,null,null,null,null,null,null,null,null,null,null,null,null,null,null,null,null,null,null,null,null,null,null,"","","",{"$error":"#DIV/0!"},{"$error":"#DIV/0!"},{"$error":"#DIV/0!"},0,0,0,0,0,0,0,0,"","","","","","","","","","",""]
[null,null,null,null,null,null,null,null,null,null,null,null,null,null,null,null,null,null,null,null,null,null,null,null,null,null,null,null,null,137,{"$error":"#N/A"},null,null,null,null,null,null,null,null,null,null,null,null,null,null,null,null,null,null,null,null,null,null,null,null,null,"","","",{"$error":"#DIV/0!"},{"$error":"#DIV/0!"},{"$error":"#DIV/0!"},0,0,0,0,0,0,0,0,"","","","","","","","","","",""]
[null,null,null,null,null,null,null,null,null,null,null,null,null,null,null,null,null,null,null,null,null,null,null,null,null,null,null,null,null,138,{"$error":"#N/A"},null,null,null,null,null,null,null,null,null,null,null,null,null,null,null,null,null,null,null,null,null,null,null,null,null,"","","",{"$error":"#DIV/0!"},{"$error":"#DIV/0!"},{"$error":"#DIV/0!"},0,0,0,0,0,0,0,0,"","","","","","","","","","",""]
[null,null,null,null,null,null,null,null,null,null,null,null,null,null,null,null,null,null,null,null,null,null,null,null,null,null,null,null,null,139,{"$error":"#N/A"},null,null,null,null,null,null,null,null,null,null,null,null,null,null,null,null,null,null,null,null,null,null,null,null,null,"","","",{"$error":"#DIV/0!"},{"$error":"#DIV/0!"},{"$error":"#DIV/0!"},0,0,0,0,0,0,0,0,"","","","","","","","","","",""]
[null,null,null,null,null,null,null,null,null,null,null,null,null,null,null,null,null,null,null,null,null,null,null,null,null,null,null,null,null,140,{"$error":"#N/A"},null,null,null,null,null,null,null,null,null,null,null,null,null,null,null,null,null,null,null,null,null,null,null,null,null,"","","",{"$error":"#DIV/0!"},{"$error":"#DIV/0!"},{"$error":"#DIV/0!"},0,0,0,0,0,0,0,0,"","","","","","","","","","",""]
[null,null,null,null,null,null,null,null,null,null,null,null,null,null,null,null,null,null,null,null,null,null,null,null,null,null,null,null,null,141,{"$error":"#N/A"},null,null,null,null,null,null,null,null,null,null,null,null,null,null,null,null,null,null,null,null,null,null,null,null,null,"","","",{"$error":"#DIV/0!"},{"$error":"#DIV/0!"},{"$error":"#DIV/0!"},0,0,0,0,0,0,0,0,"","","","","","","","","","",""]
[null,null,null,null,null,null,null,null,null,null,null,null,null,null,null,null,null,null,null,null,null,null,null,null,null,null,null,null,null,142,{"$error":"#N/A"},null,null,null,null,null,null,null,null,null,null,null,null,null,null,null,null,null,null,null,null,null,null,null,null,null,"","","",{"$error":"#DIV/0!"},{"$error":"#DIV/0!"},{"$error":"#DIV/0!"},0,0,0,0,0,0,0,0,"","","","","","","","","","",""]
[null,null,null,null,null,null,null,null,null,null,null,null,null,null,null,null,null,null,null,null,null,null,null,null,null,null,null,null,null,143,{"$error":"#N/A"},null,null,null,null,null,null,null,null,null,null,null,null,null,null,null,null,null,null,null,null,null,null,null,null,null,"","","",{"$error":"#DIV/0!"},{"$error":"#DIV/0!"},{"$error":"#DIV/0!"},0,0,0,0,0,0,0,0,"","","","","","","","","","",""]
[null,null,null,null,null,null,null,null,null,null,null,null,null,null,null,null,null,null,null,null,null,null,null,null,null,null,null,null,null,144,{"$error":"#N/A"},null,null,null,null,null,null,null,null,null,null,null,null,null,null,null,null,null,null,null,null,null,null,null,null,null,"","","",{"$error":"#DIV/0!"},{"$error":"#DIV/0!"},{"$error":"#DIV/0!"},0,0,0,0,0,0,0,0,"","","","","","","","","","",""]
[null,null,null,null,null,null,null,null,null,null,null,null,null,null,null,null,null,null,null,null,null,null,null,null,null,null,null,null,null,145,{"$error":"#N/A"},null,null,null,null,null,null,null,null,null,null,null,null,null,null,null,null,null,null,null,null,null,null,null,null,null,"","","",{"$error":"#DIV/0!"},{"$error":"#DIV/0!"},{"$error":"#DIV/0!"},0,0,0,0,0,0,0,0,"","","","","","","","","","",""]
[null,null,null,null,null,null,null,null,null,null,null,null,null,null,null,null,null,null,null,null,null,null,null,null,null,null,null,null,null,146,{"$error":"#N/A"},null,null,null,null,null,null,null,null,null,null,null,null,null,null,null,null,null,null,null,null,null,null,null,null,null,"","","",{"$error":"#DIV/0!"},{"$error":"#DIV/0!"},{"$error":"#DIV/0!"},0,0,0,0,0,0,0,0,"","","","","","","","","","",""]
[null,null,null,null,null,null,null,null,null,null,null,null,null,null,null,null,null,null,null,null,null,null,null,null,null,null,null,null,null,147,{"$error":"#N/A"},null,null,null,null,null,null,null,null,null,null,null,null,null,null,null,null,null,null,null,null,null,null,null,null,null,"","","",{"$error":"#DIV/0!"},{"$error":"#DIV/0!"},{"$error":"#DIV/0!"},0,0,0,0,0,0,0,0,"","","","","","","","","","",""]
[null,null,null,null,null,null,null,null,null,null,null,null,null,null,null,null,null,null,null,null,null,null,null,null,null,null,null,null,null,148,{"$error":"#N/A"},null,null,null,null,null,null,null,null,null,null,null,null,null,null,null,null,null,null,null,null,null,null,null,null,null,"","","",{"$error":"#DIV/0!"},{"$error":"#DIV/0!"},{"$error":"#DIV/0!"},0,0,0,0,0,0,0,0,"","","","","","","","","","",""]
[null,null,null,null,null,null,null,null,null,null,null,null,null,null,null,null,null,null,null,null,null,null,null,null,null,null,null,null,null,149,{"$error":"#N/A"},null,null,null,null,null,null,null,null,null,null,null,null,null,null,null,null,null,null,null,null,null,null,null,null,null,"","","",{"$error":"#DIV/0!"},{"$error":"#DIV/0!"},{"$error":"#DIV/0!"},0,0,0,0,0,0,0,0,"","","","","","","","","","",""]
[null,null,null,null,null,null,null,null,null,null,null,null,null,null,null,null,null,null,null,null,null,null,null,null,null,null,null,null,null,150,{"$error":"#N/A"},null,null,null,null,null,null,null,null,null,null,null,null,null,null,null,null,null,null,null,null,null,null,null,null,null,"","","",{"$error":"#DIV/0!"},{"$error":"#DIV/0!"},{"$error":"#DIV/0!"},0,0,0,0,0,0,0,0,"","","","","","","","","","",""]

{"sheet":"参照表","index":1,"n_rows":38,"n_cols":49,"rows_kept":38,"cut":false,"hidden":true,"merged":[[7,6,7,9],[7,10,7,18],[7,2,7,5]]}
[null,"サービスコード",null,null,"加算","加算コード",null,"体制要件","文章","回答コード",null,"体制",null,null,null,null,null,null,null,"資格セット","勤続セット","資格要件Ⅰ","資格要件Ⅱ","資格要件Ⅲ","資格要件Ⅳ","資格要件Ⅴ","資格要件Ⅵ","資格要件Ⅶ","資格要件Ⅷ","常勤要件Ⅰ","常勤要件Ⅱ","常勤要件Ⅲ","常勤要件Ⅳ","常勤要件Ⅴ","常勤要件Ⅵ","常勤要件Ⅶ","常勤要件Ⅷ","勤続要件Ⅰ","勤続要件Ⅱ","勤続要件Ⅲ","勤続要件Ⅳ","勤続要件Ⅴ","勤続要件Ⅵ","勤続要件Ⅶ","勤続要件Ⅷ","加算要件Ⅰイ","加算要件Ⅰロ","加算要件Ⅱ","加算要件Ⅲ"]
[null,null,null,null,{"$f":"VLOOKUP(サービスコード,A$9:F$27,C7)","v":{"$error":"#N/A"}},null,null,{"$f":"VLOOKUP(サービスコード,A$9:J$27,G7)","v":{"$error":"#N/A"}},{"$f":"VLOOKUP(H2,I$30:J$36,2,0)","v":{"$error":"#N/A"}},null,null,{"$f":"VLOOKUP(サービスコード,A8:B27,2,0)&\"体制\"","v":{"$error":"#N/A"}},null,null,null,null,null,null,null,{"$f":"VLOOKUP(サービスコード,$A9:T27,T7,0)","v":{"$error":"#N/A"}},{"$f":"VLOOKUP(サービスコード,$A9:U27,U7,0)","v":{"$error":"#N/A"}},{"$f":"VLOOKUP(サービスコード,$A9:V27,V7,0)","v":{"$error":"#N/A"}},{"$f":"VLOOKUP(サービスコード,$A9:W27,W7,0)","v":{"$error":"#N/A"}},{"$f":"VLOOKUP(サービスコード,$A9:X27,X7,0)","v":{"$error":"#N/A"}},{"$f":"VLOOKUP(サービスコード,$A9:Y27,Y7,0)","v":{"$error":"#N/A"}},{"$f":"VLOOKUP(サービスコード,$A9:Z27,Z7,0)","v":{"$error":"#N/A"}},{"$f":"VLOOKUP(サービスコード,$A9:AA27,AA7,0)","v":{"$error":"#N/A"}},{"$f":"VLOOKUP(サービスコード,$A9:AB27,AB7,0)","v":{"$error":"#N/A"}},{"$f":"VLOOKUP(サービスコード,$A9:AC27,AC7,0)","v":{"$error":"#N/A"}},{"$f":"VLOOKUP(サービスコード,$A9:AD27,AD7,0)","v":{"$error":"#N/A"}},{"$f":"VLOOKUP(サービスコード,$A9:AE27,AE7,0)","v":{"$error":"#N/A"}},{"$f":"VLOOKUP(サービスコード,$A9:AF27,AF7,0)","v":{"$error":"#N/A"}},{"$f":"VLOOKUP(サービスコード,$A9:AG27,AG7,0)","v":{"$error":"#N/A"}},{"$f":"VLOOKUP(サービスコード,$A9:AH27,AH7,0)","v":{"$error":"#N/A"}},{"$f":"VLOOKUP(サービスコード,$A9:AI27,AI7,0)","v":{"$error":"#N/A"}},{"$f":"VLOOKUP(サービスコード,$A9:AJ27,AJ7,0)","v":{"$error":"#N/A"}},{"$f":"VLOOKUP(サービスコード,$A9:AK27,AK7,0)","v":{"$error":"#N/A"}},{"$f":"VLOOKUP(サービスコード,$A9:AL27,AL7,0)","v":{"$error":"#N/A"}},{"$f":"VLOOKUP(サービスコード,$A9:AM27,AM7,0)","v":{"$error":"#N/A"}},{"$f":"VLOOKUP(サービスコード,$A9:AN27,AN7,0)","v":{"$error":"#N/A"}},{"$f":"VLOOKUP(サービスコード,$A9:AO27,AO7,0)","v":{"$error":"#N/A"}},{"$f":"VLOOKUP(サービスコード,$A9:AP27,AP7,0)","v":{"$error":"#N/A"}},{"$f":"VLOOKUP(サービスコード,$A9:AQ27,AQ7,0)","v":{"$error":"#N/A"}},{"$f":"VLOOKUP(サービスコード,$A9:AR27,AR7,0)","v":{"$error":"#N/A"}},{"$f":"VLOOKUP(サービスコード,$A9:AS27,AS7,0)","v":{"$error":"#N/A"}},{"$f":"VLOOKUP(サービスコード,$A9:AT27,AT7,0)","v":{"$error":"#N/A"}},{"$f":"VLOOKUP(サービスコード,$A9:AU27,AU7,0)","v":{"$error":"#N/A"}},{"$f":"VLOOKUP(サービスコード,$A9:AV27,AV7,0)","v":{"$error":"#N/A"}},{"$f":"VLOOKUP(サービスコード,$A9:AW27,AW7,0)","v":{"$error":"#N/A"}}]
[null,null,null,null,{"$f":"VLOOKUP(サービスコード,A$9:F$27,D7)","v":{"$error":"#N/A"}},"加算内容",null,{"$f":"VLOOKUP(サービスコード,A$9:J$27,H7)","v":{"$error":"#N/A"}},{"$f":"VLOOKUP(H3,I$30:J$36,2,0)","v":{"$error":"#N/A"}}]
[null,null,null,null,{"$f":"VLOOKUP(サービスコード,A$9:F$27,E7)","v":{"$error":"#N/A"}},{"$f":"IF(加算コード=1,加算要件Ⅰイ,IF(加算コード=2,加算要件Ⅰロ,IF(加算コード=3,加算要件Ⅱ,IF(加算コード=4,加算要件Ⅲ,\"\"))))","v":""},null,{"$f":"VLOOKUP(サービスコード,A$9:J$27,I7)","v":{"$error":"#N/A"}},{"$f":"VLOOKUP(H4,I$30:J$36,2,0)","v":{"$error":"#N/A"}},null,null,null,null,null,null,null,null,null,null,null,null,null,null,null,null,null,"資格割合"]
[null,null,null,null,{"$f":"VLOOKUP(サービスコード,A$9:F$27,F7)","v":{"$error":"#N/A"}},null,null,{"$f":"VLOOKUP(サービスコード,A$9:J$27,J7)","v":{"$error":"#N/A"}},{"$f":"VLOOKUP(H5,I$30:J$36,2,0)","v":{"$error":"#N/A"}},null,null,null,null,null,null,null,null,null,null,null,null,null,null,null,null,null,{"$f":"MID(加算内容,2,1)*1","v":{"$error":"#VALUE!"}}]
[]
[1,2,3,4,5,6,7,8,9,10,11,12,13,14,15,16,17,18,19,20,21,22,23,24,25,26,27,28,29,30,31,32,33,34,35,36,37,38,39,40,41,42,43,44,45,46,47,48,49]
["コード","サービス","加算",null,null,null,"体制要件",null,null,null,"○○体制",null,null,null,null,null,null,null,null,"資格","勤続年数","資格要件Ⅰ","資格要件Ⅱ","資格要件Ⅲ","資格要件Ⅳ","資格要件Ⅴ","資格要件Ⅵ","資格要件Ⅶ","資格要件Ⅷ","常勤要件Ⅰ","常勤要件Ⅱ","常勤要件Ⅲ","常勤要件Ⅳ","常勤要件Ⅴ","常勤要件Ⅵ","常勤要件Ⅶ","常勤要件Ⅷ","勤続要件Ⅰ","勤続要件Ⅱ","勤続要件Ⅲ","勤続要件Ⅳ","勤続要件Ⅴ","勤続要件Ⅵ","勤続要件Ⅶ","勤続要件Ⅷ","加算要件Ⅰイ","加算要件Ⅰロ","加算要件Ⅱ","加算要件Ⅲ"]
[1,"訪問入浴","サービス提供体制強化加算Ⅰ(イ)","サービス提供体制強化加算Ⅰ(ロ)","　","　","研修","会議","健康","なし","管理者","看護職員","介護職員",null,null,null,null,null,null,"資格セット1","勤続セット2","介護職員",null,null,"○","○",{"$f":"IF(AA$5=2,0.3,0.4)","v":{"$error":"#VALUE!"}},{"$f":"IF(AA$5=2,0.5,0.6)","v":{"$error":"#VALUE!"}},"介護職員",null,null,null,null,null,null,null,null,null,null,null,null,null,null,null,null,1100,1200,"ND","ND"]
[2,"訪問看護","サービス提供体制強化加算","　","　","　","研修","会議","健康","なし","管理者","看護職員","OT・PT・ST",null,null,null,null,null,null,"資格セット3","勤続セット1",null,null,null,null,null,null,null,null,null,null,null,null,null,null,null,null,"看護職員","OT・PT・ST",null,null,null,null,"○","看護師等",1001,"ND","ND","ND"]
[3,"通所介護","サービス提供体制強化加算Ⅰ(イ)","サービス提供体制強化加算Ⅰ(ロ)","サービス提供体制強化加算Ⅱ","サービス提供体制強化加算Ⅲ（療養通所介護のみ）","人欠","なし","なし","なし","管理者","生活相談員","介護職員","看護職員","機能訓練指導員",null,null,null,null,"資格セット2","勤続セット1","介護職員",null,null,"○",null,{"$f":"IF(AA$5=2,0.4,0.5)","v":{"$error":"#VALUE!"}},null,"介護職員",null,null,null,null,null,null,null,null,"生活相談員","介護職員","看護職員","機能訓練指導員",null,null,"○","直接サービスを提供する従業員",1100,1200,1001,1001]
[4,"通所リハ","サービス提供体制強化加算Ⅰ(イ)","サービス提供体制強化加算Ⅰ(ロ)","サービス提供体制強化加算Ⅱ","　","人欠","なし","なし","なし","医師","OT・PT・ST","看護職員","介護職員","柔道整復師等",null,null,null,null,"資格セット2","勤続セット1","介護職員",null,null,"○",null,{"$f":"IF(AA$5=2,0.4,0.5)","v":{"$error":"#VALUE!"}},null,"介護職員",null,null,null,null,null,null,null,null,"OT・PT・ST","看護職員","介護職員","柔道整復師等",null,null,"○","直接サービスを提供する従業員",1100,1200,1001,"ND"]
[5,"短期入所生活介護","サービス提供体制強化加算Ⅰ(イ)","サービス提供体制強化加算Ⅰ(ロ)","サービス提供体制強化加算Ⅱ","サービス提供体制強化加算Ⅲ","人欠","なし","なし","なし","医師","生活相談員","介護職員","看護職員","栄養士","機能訓練指導員","調理員その他",null,null,"資格セット2","勤続セット1","介護職員",null,null,"○",null,{"$f":"IF(AA$5=2,0.5,0.6)","v":{"$error":"#VALUE!"}},null,"介護職員","介護職員","看護職員",null,null,null,"○",0.75,"看護・介護職員","生活相談員","介護職員","看護職員","機能訓練指導員",null,null,"○","直接サービスを提供する従業員",1100,1200,1010,1001]
[6,"短期入所療養介護","サービス提供体制強化加算Ⅰ(イ)","サービス提供体制強化加算Ⅰ(ロ)","サービス提供体制強化加算Ⅱ","サービス提供体制強化加算Ⅲ","人欠","なし","なし","なし","医師","薬剤師","看護職員","介護職員","支援相談員","OT・PT・ST","栄養士","介護支援専門員","調理員・事務員その他","資格セット2","勤続セット1","介護職員",null,null,"○",null,{"$f":"IF(AA$5=2,0.5,0.6)","v":{"$error":"#VALUE!"}},null,"介護職員","介護職員","看護職員",null,null,null,"○",0.75,"看護・介護職員","看護職員","介護職員","支援相談員","OT・PT・ST",null,null,"○","直接サービスを提供する従業員",1100,1200,1010,1001]
[7,"特定施設〔広域型〕","サービス提供体制強化加算Ⅰ(イ)","サービス提供体制強化加算Ⅰ(ロ)","サービス提供体制強化加算Ⅱ","サービス提供体制強化加算Ⅲ","人欠","なし","なし","なし","管理者","生活相談員","介護職員","看護職員","機能訓練指導員","計画作成担当者",null,null,null,"資格セット2","勤続セット1","介護職員",null,null,"○",null,{"$f":"IF(AA$5=2,0.5,0.6)","v":{"$error":"#VALUE!"}},null,"介護職員","介護職員","看護職員",null,null,null,"○",0.75,"看護・介護職員","生活相談員","介護職員","看護職員","機能訓練指導員",null,null,"○","直接サービスを提供する従業員",1100,1200,1010,1001]
[8,"定期巡回・随時対応型訪問介護看護","サービス提供体制強化加算Ⅰ(イ)","サービス提供体制強化加算Ⅰ(ロ)","サービス提供体制強化加算Ⅱ","サービス提供体制強化加算Ⅲ","研修","会議","健康","なし","管理者","オペレーター","計画作成担当者","訪問介護員","訪問看護員","OT・PT・ST",null,null,null,"資格セット1","勤続セット1","オペレーター","計画作成担当者","訪問介護員","○","○",{"$f":"IF(AA$5=2,0.3,0.4)","v":{"$error":"#VALUE!"}},{"$f":"IF(AA$5=2,0.5,0.6)","v":{"$error":"#VALUE!"}},"訪問介護員等","管理者","オペレーター","計画作成担当者","訪問介護員","訪問看護員","○",0.6,"従業者","管理者","オペレーター","計画作成担当者","訪問介護員","訪問看護員","OT・PT・ST","○","従業員",1100,1200,1010,1001]
[9,"夜間対応型訪問介護〔Ⅰ型〕","サービス提供体制強化加算Ⅰ(イ)","サービス提供体制強化加算Ⅰ(ロ)","　","　","夜間Ⅰ","研修","会議","健康","管理者","オペレーター","面接相談員","訪問介護員",null,null,null,null,null,"資格セット1","勤続セット2","オペレーター","面接相談員","訪問介護員","○","○",{"$f":"IF(AA$5=2,0.3,0.4)","v":{"$error":"#VALUE!"}},{"$f":"IF(AA$5=2,0.5,0.6)","v":{"$error":"#VALUE!"}},"訪問介護員等",null,null,null,null,null,null,null,null,null,null,null,null,null,null,null,null,1100,1200,"ND","ND"]
[10,"夜間対応型訪問介護〔Ⅱ型〕","サービス提供体制強化加算Ⅱ(イ)","サービス提供体制強化加算Ⅱ(ロ)","　","　","夜間Ⅱ","研修","会議","健康","管理者","訪問介護員",null,null,null,null,null,null,null,"資格セット2","勤続セット2","訪問介護員",null,null,"○","○",{"$f":"IF(AA$5=2,0.3,0.4)","v":{"$error":"#VALUE!"}},{"$f":"IF(AA$5=2,0.5,0.6)","v":{"$error":"#VALUE!"}},"訪問介護員等",null,null,null,null,null,null,null,null,null,null,null,null,null,null,null,null,1100,1200,"ND","ND"]
[11,"認知症対応型通所介護","サービス提供体制強化加算Ⅰ(イ)","サービス提供体制強化加算Ⅰ(ロ)","サービス提供体制強化加算Ⅱ","　","人欠","なし","なし","なし","管理者","生活相談員","介護職員","看護職員","機能訓練指導員",null,null,null,null,"資格セット2","勤続セット1","介護職員",null,null,"○",null,{"$f":"IF(AA$5=2,0.4,0.5)","v":{"$error":"#VALUE!"}},null,"介護職員",null,null,null,null,null,null,null,null,"生活相談員","看護職員","介護職員","機能訓練指導員",null,null,"○","直接サービスを提供する従業員",1100,1200,1001,"ND"]
[12,"小規模多機能型居宅介護","サービス提供体制強化加算Ⅰ(イ)","サービス提供体制強化加算Ⅰ(ロ)","サービス提供体制強化加算Ⅱ","サービス提供体制強化加算Ⅲ","研修","会議","人欠","なし","管理者","介護支援専門員","介護職員","看護職員",null,null,null,null,null,"資格セット2","勤続セット1","介護支援専門員","介護職員",null,"○",null,{"$f":"IF(AA$5=2,0.4,0.5)","v":{"$error":"#VALUE!"}},null,"介護職員","管理者","介護支援専門員","介護職員","看護職員",null,"○",0.6,"従業者","管理者","介護支援専門員","介護職員","看護職員",null,null,"○","従業員",1100,1200,1010,1001]
[13,"認知症対応型共同生活介護","サービス提供体制強化加算Ⅰ(イ)","サービス提供体制強化加算Ⅰ(ロ)","サービス提供体制強化加算Ⅱ","サービス提供体制強化加算Ⅲ","人欠","なし","なし","なし","管理者","計画作成担当者","介護職員","看護職員",null,null,null,null,null,"資格セット2","勤続セット1","介護職員",null,null,"○",null,{"$f":"IF(AA$5=2,0.5,0.6)","v":{"$error":"#VALUE!"}},null,"介護職員","介護職員","看護職員",null,null,null,"○",0.75,"看護・介護職員","介護職員","看護職員",null,null,null,null,"○","直接サービスを提供する従業員",1100,1200,1010,1001]
[14,"地域密着型特定施設","サービス提供体制強化加算Ⅰ(イ)","サービス提供体制強化加算Ⅰ(ロ)","サービス提供体制強化加算Ⅱ","サービス提供体制強化加算Ⅲ","人欠","なし","なし","なし","管理者","生活相談員","介護職員","看護職員","機能訓練指導員","計画作成担当者",null,null,null,"資格セット2","勤続セット1","介護職員",null,null,"○",null,{"$f":"IF(AA$5=2,0.5,0.6)","v":{"$error":"#VALUE!"}},null,"介護職員","介護職員","看護職員",null,null,null,"○",0.75,"看護・介護職員","生活相談員","介護職員","看護職員","機能訓練指導員",null,null,"○","直接サービスを提供する従業員",1100,1200,1010,1001]
[15,"地域密着型特養","サービス提供体制強化加算Ⅰ(イ)","サービス提供体制強化加算Ⅰ(ロ)","サービス提供体制強化加算Ⅱ","サービス提供体制強化加算Ⅲ","人欠","なし","なし","なし","医師","生活相談員","介護職員","看護職員","栄養士","機能訓練指導員","介護支援専門員",null,null,"資格セット2","勤続セット1","介護職員",null,null,"○",null,{"$f":"IF(AA$5=2,0.5,0.6)","v":{"$error":"#VALUE!"}},null,"介護職員","介護職員","看護職員",null,null,null,"○",0.75,"看護・介護職員","生活相談員","介護職員","看護職員","機能訓練指導員",null,null,"○","直接サービスを提供する従業員",1100,1200,1010,1001]
[16,"看護小規模多機能型居宅介護","サービス提供体制強化加算Ⅰ(イ)","サービス提供体制強化加算Ⅰ(ロ)","サービス提供体制強化加算Ⅱ","サービス提供体制強化加算Ⅲ","研修","会議","人欠","なし","管理者","介護支援専門員","介護職員","看護職員",null,null,null,null,null,"資格セット2","勤続セット1","介護支援専門員","介護職員",null,"○",null,{"$f":"IF(AA$5=2,0.4,0.5)","v":{"$error":"#VALUE!"}},null,"介護職員","管理者","介護支援専門員","介護職員","看護職員",null,"○",0.6,"従業者","管理者","介護支援専門員","介護職員","看護職員",null,null,"○","従業員",1100,1200,1010,1001]
[17,"特養〔広域型〕","サービス提供体制強化加算Ⅰ(イ)","サービス提供体制強化加算Ⅰ(ロ)","サービス提供体制強化加算Ⅱ","サービス提供体制強化加算Ⅲ","人欠","なし","なし","なし","施設長","医師","生活相談員","介護職員","看護職員","栄養士","機能訓練指導員","調理員・事務員その他",null,"資格セット2","勤続セット1","介護職員",null,null,"○",null,{"$f":"IF(AA$5=2,0.5,0.6)","v":{"$error":"#VALUE!"}},null,"介護職員","介護職員","看護職員",null,null,null,"○",0.75,"看護・介護職員","生活相談員","介護職員","看護職員","機能訓練指導員",null,null,"○","直接サービスを提供する従業員",1100,1200,1010,1001]
[18,"老健","サービス提供体制強化加算Ⅰ(イ)","サービス提供体制強化加算Ⅰ(ロ)","サービス提供体制強化加算Ⅱ","サービス提供体制強化加算Ⅲ","人欠","なし","なし","なし","医師","薬剤師","看護職員","介護職員","支援相談員","OT・PT・ST","栄養士","介護支援専門員","調理員・事務員その他","資格セット2","勤続セット1","介護職員",null,null,"○",null,{"$f":"IF(AA$5=2,0.5,0.6)","v":{"$error":"#VALUE!"}},null,"介護職員","介護職員","看護職員",null,null,null,"○",0.75,"看護・介護職員","看護職員","介護職員","支援相談員","OT・PT・ST",null,null,"○","直接サービスを提供する従業員",1100,1200,1010,1001]
[19,"介護療養型医療施設","サービス提供体制強化加算Ⅰ(イ)","サービス提供体制強化加算Ⅰ(ロ)","サービス提供体制強化加算Ⅱ","サービス提供体制強化加算Ⅲ","人欠","なし","なし","なし","医師","薬剤師","栄養士","看護職員","介護職員","OT・PT","精神保健福祉士","介護支援専門員",null,"資格セット2","勤続セット1","介護職員",null,null,"○",null,{"$f":"IF(AA$5=2,0.5,0.6)","v":{"$error":"#VALUE!"}},null,"介護職員","介護職員","看護職員",null,null,null,"○",0.75,"看護・介護職員","看護職員","介護職員","OT・PT",null,null,null,"○","直接サービスを提供する従業員",1100,1200,1010,1001]
[null,null,null,null,null,null,null,null,null,null,null,null,null,null,null,null,null,null,null,null,null,null,null,null,null,null,null,null,null,null,null,null,null,null,null,null,null,null,null,null,null,null,null,null,null,null,"※ND=not defined(未定義)"]
[null,null,null,null,null,null,null,"回答","体制要件","文章",null,null,null,null,null,null,null,null,null,"資格セット1","勤続セット1","※基準の資格"]
[null,null,null,null,null,null,null,"有","研修","全ての従業者に対し、従業者ごとに研修計画を策定し、当該計画に従い、研修を実施している又は実施することが予定されている。",null,null,null,null,null,null,null,null,null,"介護福祉士","3年未満","介護福祉士"]
[null,null,null,null,null,null,null,"無","会議","留意事項の伝達や従業者の技術指導を目的とした会議を定期的に開催している。",null,null,null,null,null,null,null,null,null,"実務者研修","3年以上","実務者研修"]
["《参考》",null,null,null,null,null,null,null,"健康","従業者に対し、健康診断等の定期的な実施体制を整備している。",null,null,null,null,null,null,null,null,null,"(旧)介護職員基礎研修","勤続セット2","(旧)介護職員基礎研修"]
[null,"入力値",null,null,null,null,null,null,"人欠","定員超過利用・人員欠如の有無",null,null,null,null,null,null,null,null,null,"その他","※記入不要"]
[null,"入力値から導かれた値",null,null,null,null,null,null,"夜間Ⅰ","夜間対応型訪問看護費（Ⅰ）を算定している。",null,null,null,null,null,null,null,null,null,"資格セット2"]
[null,"参照用リスト",null,null,null,null,null,null,"夜間Ⅱ","夜間対応型訪問看護費（Ⅱ）を算定している。",null,null,null,null,null,null,null,null,null,"介護福祉士"]
[null,"参照用リスト（サービスに依らない）",null,null,null,null,null,null,"なし","※未記入のままで結構です。",null,null,null,null,null,null,null,null,null,"その他"]
[null,null,null,null,null,null,null,null,null,null,null,null,null,null,null,null,null,null,null,"資格セット3"]
[null,null,null,null,null,null,null,null,null,null,null,null,null,null,null,null,null,null,null,"※記入不要"]